Workbook

Sheet Instructions & Inputs
B2: Whole-of-life costs model for sports fields
B4: Introduction
B5: The Sport NZ Guidance Document for Sports Field Development highlights the importance of understanding the project's lifecycle costs. This includes the initial construction cost, ongoing maintenance cots, and future renewals. It is essential that ongoing maintenance costs and future renewals are effectively managed over time to optimise field performance and desired use outcomes. Therefore, it is crucial to understand your budget, which is aligned with performance expectations.
B7: The calculator has been designed for independent and customised use to suit the specific settings, conditions and costs of each sports field project. The customisable inputs are highlighted below.
B9: More information can be found here:
B10: Sport NZ's Guidance Document for Sports Field Development
B12: Key inputs (editable values in the model) | I12: Key outputs
B14: Financial Assumptions | I14: Annual Use Hours (by field type)
B15: - Inflation
B16: - Forward Risk Free Discount Rate | I16: Cost per Hour of Play (by field type)
B18: Construction Cost Input Assumptions | I18: End User Cost (for summer and winter activity)
B19: - i.e. earthworks, construction, floodlights, project costs, other
B21: Maintenance Cost Assumptions
B22: - Field of play costs, power, insurance, other
B24: Lifecycle Capex Assumptions
B25: - Renewal periods can be added or amended
B27: Operational Assumptions
B28: - Winter and summer activity hours and weeks
B30: Cost Recovery/Contribution
B31: - Percentage return or contribution against whole-of-life and maintenance costs
B33: Note 1: all yellow shaded cells are editable values
B34: Note 2: more input rows can be added to the model as needed.
B35: Click here for more detailed information on model inputs and outputs: | F35: Sport NZ's Guidance Document for Sports Field Development
B38: Acknowledgements
B39: Sport NZ and Visitor Solutions would like to acknowledge and thank the State Government of Victoria for the initial base model (utilised in the 2013 model), the expertise of Deloitte and New Zealand Sports Turf Institute, and the inputs received from a range of contractors, suppliers and councils.
B41: For further informationl please contact:
B42: Mark Bowater, Spaces and Places Consultant
B43: Sport New Zealand
B44: mark.bowater@sportnz.org.nz

Sheet >>>

Sheet Model Inputs
C1: Whole-of-Life cost model for soil, sand-carpet, hybrid and artificial sports fields
C2: Financial assumptions
J3: Commentary: | K3: Graphical outputs
C4: Cost input assumptions: | K4: Graphical Output (change field type here)
C5: Inflation | D5: % | F5: 0.019 | G5: CPI Forecast | The Treasury New Zealand | J5: The overall general upward price movement of goods and services in an economy, usually as measured by the Consumer Price Index. | K5: Soil
C6: Forward Risk Free Discount Rate (nominal) | D6: % | F6: 0.0599 | G6: Discount Rate | The Treasury New Zealand | J6: A rate which reflects the difference in value of cash an investor would want in a years time in lieu of an equivalent cash payment today ( i.e. compound interest)
C8: Modelling to include inflation? | D8: Yes/No | F8: Yes | J8: Real discount rate includes allowance for discount rate and inflation. Only change if necessary
C9: Modelled discount rate: | D9: % | F9: =IF(F8="Yes",F6,F6-F5) -> 0.0599 | J9: The discount rate which also takes into account inflation
C11: Input assumptions (GST exclusive):
J12: Commentary:
C14: Construction cost input assumptions: | F14: Soil | G14: Sand-Carpet | H14: Hybrid | I14: Artificial
C15: Earthworks | D15: NZ$ | F15: 80000 | G15: 85000 | H15: 85000 | I15: 85000
C16: Construction | D16: NZ$ | F16: 106000 | G16: 428000 | H16: 878000 | I16: 2608000
C17: Floodlights | D17: NZ$ | G17: 280000 | H17: 280000 | I17: 280000
C18: Other (i.e. fencing, surrounds…) | D18: NZ$ | I18: 531000
C19: Project Costs (i.e. P&G, professional fees) | D19: NZ$ | F19: 67000 | G19: 167000 | H19: 212000 | I19: 170000
C20: Total | D20: NZ$ | F20: =SUM(F15:F19) -> 253000 | G20: =SUM(G15:G19) -> 960000 | H20: 1455000 | I20: =SUM(I15:I19) -> 3674000 | J20: Capital costs can be estimated based on past experience. Past costs will need to be indexed to present date rates
C22: Maintenance cost assumptions (annual):
C23: Field of Play Costs | D23: NZ$ | F23: 20000 | G23: 90000 | H23: 90000 | I23: 42000
C24: Power (i.e. for floodlights) | D24: NZ$
C25: Insurance | D25: NZ$ | I25: 7000
C26: Other | D26: NZ$
C27: Total | D27: NZ$ | F27: =SUM(F23:F26) -> 20000 | G27: =SUM(G23:G26) -> 90000 | H27: =SUM(H23:H26) -> 90000 | I27: 49000 | J27: Maintenance costs can be estimated based on past experience. Past costs will need to be indexed to present date rates
C29: Lifecycle capex assumptions: | J29: Renewal cost should include all remediation costs including disposal of old carpet and drainage replacement
C30: Renewal cost - 3 Years | D30: NZ$ | E30: 3 | H30: 87000
C31: Renewal cost - 10 Years | D31: NZ$ | E31: 10 | G31: 250000 | I31: 1000000
C32: Renewal cost - 15 Years | D32: NZ$ | E32: 15
C33: Renewal cost - 20 Years | D33: NZ$ | E33: 20 | H33: 1400000 | I33: 250000
C34: Total | D34: NZ$ | F34: =SUM(Model!E19:AI22) -> 0 | G34: =(SUM(Model!E44:AI47))*-1 -> 1105753.434 | H34: =(SUM(Model!E69:AI72))*-1 -> 3242426.417 | I34: =(SUM(Model!E94:AI97))*-1 -> 4787283.973 | J34: With inflation factored in against renewal periods over 30-years
C36: Operational assumptions:
J37: Commentary:
C39: Winter game hours: | F39: Soil | G39: Sand-Carpet | H39: Hybrid | I39: Artificial
C40: Weeks in use games annually | D40: Weeks | F40: 22 | G40: 22 | H40: 22 | I40: 25 | J40: Insert appropriate weeks depending on use.
C41: No game days per week | D41: No# | F41: 1 | G41: 1 | H41: 2 | I41: 2 | J41: Insert likely daily capacity of natural for each field type - see input assumptions on instructions page
C42: Hours of use games daily | D42: Hrs/Day | F42: 2 | G42: 4 | H42: 4 | I42: 8 | J42: Use past records to understand the typical achieved.
C43: Winter training hours:
C44: Weeks in use training annually | D44: Weeks | F44: 22 | G44: 22 | H44: 22 | I44: 25 | J44: Insert appropriate weeks depending on summer/winter use / all year round
C45: Hours of use training weekly | D45: Hr/Week | F45: 6 | G45: 14 | H45: 18 | I45: 29 | J45: Use past records to understand the typical achieved. This should include a fair representation of down time etc
C47: Summer game hours:
C48: Weeks in use games annually | D48: Weeks | F48: 22 | G48: 22 | H48: 22 | I48: 25 | J48: Insert appropriate weeks depending on use.
C49: No game days per week | D49: No# | F49: 1 | G49: 1 | H49: 2 | I49: 2 | J49: Insert likely daily capacity of natural for each field type - see input assumptions on instructions page
C50: Hours of use games daily | D50: Hrs/Day | F50: 4 | G50: 4 | H50: 4 | I50: 8 | J50: Use past records to understand the typical achieved.
C51: Summer training hours:
C52: Weeks in use training annually | D52: Weeks | F52: 22 | G52: 22 | H52: 22 | I52: 25 | J52: Insert appropriate weeks depending on summer/winter use / all year round
C53: Hours of use training weekly | D53: Hr/Week | F53: 7 | G53: 14 | H53: 18 | I53: 29 | J53: Use past records to understand the typical achieved. This should include a fair representation of down time etc
C55: Calculated outputs:
J56: Commentary:
F57: Soil | G57: Sand-Carpet | H57: Hybrid | I57: Artificial
C58: No. of game hours per annum | D58: No# | F58: =(F40*F42*F41)+(F48*F49*F50) -> 132 | G58: =(G40*G42*G41)+(G48*G49*G50) -> 176 | H58: =(H40*H42*H41)+(H48*H49*H50) -> 352 | I58: =(I40*I42*I41)+(I48*I49*I50) -> 800 | J58: = Weeks in use games annually x hours of use games daily x number of game days per week
C59: Training hours per annum | D59: Hrs | F59: =(F44*F45)+(F52*F53) -> 286 | G59: =(G44*G45)+(G52*G53) -> 616 | H59: 792 | I59: 1450 | J59: = Weeks in use training annually x hours of use training daily x number of training days per week
C60: Annual use hours | D60: Hrs | F60: =F58+F59 -> 418 | G60: =G58+G59 -> 792 | H60: =H58+H59 -> 1144 | I60: =I58+I59 -> 2250 | J60: Annual use hours ( games and training)
C62: Lifecycle cost discounted | D62: NZ$ | F62: =-Model!AJ36 -> 598264.4814 | G62: =-Model!AJ61 -> 2872928.767 | H62: =-Model!AJ86 -> 4127012.491 | I62: =-Model!AJ111 -> 6070648.082 | J62: Undiscounted cost including capital cost and on-going maintenance costs
C63: Lifecycle revenue discounted | D63: NZ$ | F63: =Model!AJ37 -> 598264.4814 | G63: =Model!AJ62 -> 2872928.767 | H63: =Model!AJ87 -> 4127012.491 | I63: =Model!AJ112 -> 6070648.082 | J63: Undiscounted revenue (should be equal to costs when targeted NPV set to 0)
C64: Un-discounted net cashflow over 30 yrs | D64: NZ$ | F64: =Model!AJ31 -> 343441.05 | G64: =Model!AJ56 -> 1044317.935 | H64: =Model!AJ81 -> 1369115.359 | I64: =Model!AJ106 -> 3855931.192 | J64: Undiscounted net cashflow for each surface type based on the defined surface inputs listed in the table above
C65: Cost per hour of play to achieve target NPV | D65: $/Hr (GST Excl) | F65: 82.90773116 | G65: 210.1250205 | H65: 208.9718807 | I65: 156.2897987 | J65: Total cost per hour of play to achieve targeted NPV (model is currently set as zero for break even)
C67: GST inclusive price | D67: $/Hr (GST Incl) | F67: =SoilHrRate*1.15 -> 95.34389084 | G67: =SandHrRate*1.15 -> 241.6437736 | H67: =ArtificialHrRate*1.15 -> 240.3176628 | I67: =OtherHrRate*1.15 -> 179.7332685
C69: Cost Recovery/Contribution Percentage:
J70: Commentary:
C72: Based on Whole-of-Life costs (30-year period):
C73: Whole-of-Life Cost Recovery/Contribution % | D73: 0.03 | F73: =$D$73*F67 -> 2.860316725 | G73: =$D$73*G67 -> 7.249313209 | H73: 7.209529885 | I73: 5.391998054 | J73: Include a cost recovery % target and apply this against the cost per hour (i.e. ask the question - how much do we want to subsidise and absorb by ourselves or rely on funding?)
C74: Annual Winter Cost for Field Use (GST Incl.) | D74: NZ$ | F74: =((F40*F41*F42)+(F44*F45))*F73 -> 503.4157436 | G74: =((G40*G41*G42)+(G44*G45))*G73 -> 2870.728031 | H74: =((H40*H41*H42)+(H44*H45))*H73 -> 4123.851094 | I74: =((I40*I41*I42)+(I44*I45))*I73 -> 6065.997811 | J74: Indicative annual cost for a club who is based at the field during the winter season (assumes all hours are allocated to one user)
C75: Annual Summer Cost for Field Use (GST Incl.) | D75: NZ$ | F75: =((F48*F49*F50)+(F52*F53))*F73 -> 692.1966475 | G75: =((G48*G49*G50)+(G52*G53))*G73 -> 2870.728031 | H75: =((H48*H49*H50)+(H52*H53))*H73 -> 4123.851094 | I75: =((I48*I49*I50)+(I52*I53))*I73 -> 6065.997811 | J75: Indicative annual cost for a club who is based at the field during the summer season (assumes all hours are allocated to one user)
C77: Based on annual maintenance costs (Year 1 cost only):
C78: Annual Maintenance Cost Recovery/Contribution % | D78: 0.03 | F78: =(F27/F60)*$D$78 -> 1.435406699 | G78: =(G27/G60)*$D$78 -> 3.409090909 | H78: =(H27/H60)*$D$78 -> 2.36013986 | I78: =(I27/I60)*$D$78 -> 0.6533333333 | J78: Include a cost recovery % target and apply this against the annual maintenance cost per hour (i.e. ask the question - how much do we want to subsidise and absorb by ourselves or rely on funding?)
C79: Annual Winter Cost for Field Use (GST Incl.) | D79: NZ$ | F79: =((F40*F41*F42)+(F44*F45))*F78 -> 252.6315789 | G79: =((G40*G41*G42)+(G44*G45))*G78 -> 1350 | H79: =((H40*H41*H42)+(H44*H45))*H78 -> 1350 | I79: =((I40*I41*I42)+(I44*I45))*I78 -> 735 | J79: Indicative annual cost for a club who is based at the field during the winter season (assumes all hours are allocated to one user)
C80: Annual Summer Cost for Field Use (GST Incl.) | D80: NZ$ | F80: =((F48*F49*F50)+(F52*F53))*F78 -> 347.3684211 | G80: =((G48*G49*G50)+(G52*G53))*G78 -> 1350 | H80: =((H48*H49*H50)+(H52*H53))*H78 -> 1350 | I80: =((I48*I49*I50)+(I52*I53))*I78 -> 735 | J80: Indicative annual cost for a club who is based at the field during the summer season (assumes all hours are allocated to one user)
C83: Annual Winter Cost for Field Use (GST Incl.) | F83: =((F51*F52*F53)+(F56*F57))*F78 ->  | G83: =((G51*G52*G53)+(G56*G57))*G78 ->  | H83: =((H51*H52*H53)+(H56*H57))*H78 ->  | I83: =((I51*I52*I53)+(I56*I57))*I78 ->  | J83: Indicative annual cost for a club who is based at the field during the winter season (assumes all hours are allocated to one user)
C85: Annual Summer Cost for Field Use (GST Incl.) | F85: =((F60*F61*F62)+(F64*F65))*F78 -> 40871652.98 | G85: =((G60*G61*G62)+(G64*G65))*G78 -> 748081798.4 | H85: =((H60*H61*H62)+(H64*H65))*H78 -> 675251618.2 | I85: =((I60*I61*I62)+(I64*I65))*I78 -> 393726570.3 | J85: Indicative annual cost for a club who is based at the field during the summer season (assumes all hours are allocated to one user)
C86: Total Costs Over 30-Years | D86: NZ$ | F86: =F20+F34+F87 -> 1066952.213 | G86: =G20+G34+G87 -> 5728538.391 | H86: =H20+H34+H87 -> 8360211.374 | I86: =I20+I34+I87 -> 10455466.89 | J86: Total costs over 30-years
C87: Total Maintenance Costs Over 30-Years | D87: NZ$ | F87: =(SUM(Model!E17:AI17))*-1 -> 813952.2126 | G87: =(SUM(Model!E42:AI42))*-1 -> 3662784.957 | H87: =SUM(Model!E67:AI67)*-1 -> 3662784.957 | I87: =SUM(Model!E92:AI92)*-1 -> 1994182.921 | J87: Maintenance over 30-years (includes inflation)

Sheet Disclaimer
B2: DISCLAIMER This financial model ("the Model") and the accompanying assumptions have been prepared by Sport NZ with assistance from Visitor Solutions. The Model has been developed as a general planning and decision-support tool to assist organisations in assessing the potential financial performance of sport and recreation facility projects. The Model is made publicly available for information and planning purposes only. While reasonable care has been taken in its preparation, Sport NZ and Visitor Solutions make no representation or warranty, express or implied, as to the accuracy, completeness, reliability or suitability of the Model or the assumptions contained within it for any particular purpose. The Model includes forecasts and financial projections that are based on assumptions and estimates. Forecasts are inherently uncertain and involve future events and circumstances, many of which are beyond the control of Sport NZ, Visitor Solutions and the organisations using the Model. Actual results are likely to differ from those forecast, and such differences may be material. Users are responsible for reviewing, validating and adapting the assumptions and inputs to reflect their own circumstances. The outputs generated by the Model should not be relied upon as the sole basis for investment, funding or business decisions and do not constitute financial, legal, accounting or professional advice. Users should obtain independent professional advice where appropriate. To the fullest extent permitted by law, Sport NZ and Visitor Solutions, including their respective affiliates, directors, employees and agents, accept no liability for any loss, damage, cost or expense arising directly or indirectly from the use of, or reliance on, the Model or any outputs it produces. June 2026

Sheet Model
B2: Do not edit: The following sheet is for reference only. This sheet includes all the workings that are represented in the Model inputs sheet.
B4: Year | E4: 0 | F4: 1 | G4: 2 | H4: 3 | I4: 4 | J4: 5 | K4: 6 | L4: 7 | M4: 8 | N4: 9 | O4: 10 | P4: 11 | Q4: 12 | R4: 13 | S4: 14 | T4: 15 | U4: 16 | V4: 17 | W4: 18 | X4: 19 | Y4: 20 | Z4: 21 | AA4: 22 | AB4: 23 | AC4: 24 | AD4: 25 | AE4: 26 | AF4: 27 | AG4: 28 | AH4: 29 | AI4: 30 | AJ4: Total
B6: Inflation Rate | C6: % | D6: ='Model Inputs'!F5*IF('Model Inputs'!F8="No",0,1) -> 0.019
B7: Capex Timing | C7: Flag: | E7: 1
B8: Replacement Cycle:
B9: ='Model Inputs'!E30 -> 3 | C9: Flag: | F9: =IF(MOD(F$4,$B9)=0,1,0) -> 0 | G9: =IF(MOD(G$4,$B9)=0,1,0) -> 0 | H9: 1 | I9: 0 | J9: 0 | K9: 1 | L9: 0 | M9: 0 | N9: 1 | O9: 0 | P9: 0 | Q9: 1 | R9: 0 | S9: 0 | T9: 1 | U9: 0 | V9: 0 | W9: 1 | X9: 0 | Y9: 0 | Z9: 1 | AA9: 0 | AB9: 0 | AC9: 1 | AD9: 0 | AE9: 0 | AF9: 1 | AG9: 0 | AH9: 0 | AI9: 1
B10: ='Model Inputs'!E31 -> 10 | C10: Flag: | F10: =IF(MOD(F$4,$B10)=0,1,0) -> 0 | G10: 0 | H10: 0 | I10: 0 | J10: 0 | K10: 0 | L10: 0 | M10: 0 | N10: 0 | O10: 1 | P10: 0 | Q10: 0 | R10: 0 | S10: 0 | T10: 0 | U10: 0 | V10: 0 | W10: 0 | X10: 0 | Y10: 1 | Z10: 0 | AA10: 0 | AB10: 0 | AC10: 0 | AD10: 0 | AE10: 0 | AF10: 0 | AG10: 0 | AH10: 0 | AI10: 1
B11: ='Model Inputs'!E32 -> 15 | C11: Flag: | F11: 0 | G11: 0 | H11: 0 | I11: 0 | J11: 0 | K11: 0 | L11: 0 | M11: 0 | N11: 0 | O11: 0 | P11: 0 | Q11: 0 | R11: 0 | S11: 0 | T11: 1 | U11: 0 | V11: 0 | W11: 0 | X11: 0 | Y11: 0 | Z11: 0 | AA11: 0 | AB11: 0 | AC11: 0 | AD11: 0 | AE11: 0 | AF11: 0 | AG11: 0 | AH11: 0 | AI11: 1
B12: ='Model Inputs'!E33 -> 20 | C12: Flag: | F12: 0 | G12: 0 | H12: 0 | I12: 0 | J12: 0 | K12: 0 | L12: 0 | M12: 0 | N12: 0 | O12: 0 | P12: 0 | Q12: 0 | R12: 0 | S12: 0 | T12: 0 | U12: 0 | V12: 0 | W12: 0 | X12: 0 | Y12: 1 | Z12: 0 | AA12: 0 | AB12: 0 | AC12: 0 | AD12: 0 | AE12: 0 | AF12: 0 | AG12: 0 | AH12: 0 | AI12: 0
B14: SOIL
B15: COSTS:
B16: Construction | C16: NZ$: | D16: ='Model Inputs'!$F$20 -> 253000 | E16: =-$D16*E$7 -> -253000 | F16: =-$D16*F$7 -> 0 | G16: 0 | H16: 0 | I16: 0 | J16: 0 | K16: 0 | L16: 0 | M16: 0 | N16: 0 | O16: 0 | P16: 0 | Q16: 0 | R16: 0 | S16: 0 | T16: 0 | U16: 0 | V16: 0 | W16: 0 | X16: 0 | Y16: 0 | Z16: 0 | AA16: 0 | AB16: 0 | AC16: 0 | AD16: 0 | AE16: 0 | AF16: 0 | AG16: 0 | AH16: 0 | AI16: 0 | AJ16: =SUM(E16:AI16) -> -253000
B17: Maintenance | C17: NZ$: | D17: ='Model Inputs'!$F$27 -> 20000 | F17: =-$D17*(1+$D$6)^F$4 -> -20380 | G17: =-$D17*(1+$D$6)^G$4 -> -20767.22 | H17: -21161.79718 | I17: -21563.87133 | J17: -21973.58488 | K17: -22391.08299 | L17: -22816.51357 | M17: -23250.02733 | N17: -23691.77785 | O17: -24141.92163 | P17: -24600.61814 | Q17: -25068.02988 | R17: -25544.32245 | S17: -26029.66458 | T17: -26524.2282 | U17: -27028.18854 | V17: -27541.72412 | W17: -28065.01688 | X17: -28598.2522 | Y17: -29141.61899 | Z17: -29695.30975 | AA17: -30259.52064 | AB17: -30834.45153 | AC17: -31420.30611 | AD17: -32017.29193 | AE17: -32625.62047 | AF17: -33245.50726 | AG17: -33877.1719 | AH17: -34520.83817 | AI17: -35176.73409 | AJ17: =SUM(E17:AI17) -> -813952.2126
B18: Replacement costs:
B19: ='Model Inputs'!C30 -> Renewal cost - 3 Years | C19: NZ$: | D19: ='Model Inputs'!F30 -> 0 | F19: =-$D19*F$9*(1+$D$6)^F$4 -> 0 | G19: =-$D19*G$9*(1+$D$6)^G$4 -> 0 | H19: 0 | I19: 0 | J19: 0 | K19: 0 | L19: 0 | M19: 0 | N19: 0 | O19: 0 | P19: 0 | Q19: 0 | R19: 0 | S19: 0 | T19: 0 | U19: 0 | V19: 0 | W19: 0 | X19: 0 | Y19: 0 | Z19: 0 | AA19: 0 | AB19: 0 | AC19: 0 | AD19: 0 | AE19: 0 | AF19: 0 | AG19: 0 | AH19: 0 | AI19: 0 | AJ19: =SUM(E19:AI19) -> 0
B20: ='Model Inputs'!C31 -> Renewal cost - 10 Years | C20: NZ$: | D20: ='Model Inputs'!F31 -> 0 | F20: =-$D20*F$10*(1+$D$6)^F$4 -> 0 | G20: =-$D20*G$10*(1+$D$6)^G$4 -> 0 | H20: 0 | I20: 0 | J20: 0 | K20: 0 | L20: 0 | M20: 0 | N20: 0 | O20: 0 | P20: 0 | Q20: 0 | R20: 0 | S20: 0 | T20: 0 | U20: 0 | V20: 0 | W20: 0 | X20: 0 | Y20: 0 | Z20: 0 | AA20: 0 | AB20: 0 | AC20: 0 | AD20: 0 | AE20: 0 | AF20: 0 | AG20: 0 | AH20: 0 | AI20: 0 | AJ20: 0
B21: ='Model Inputs'!C32 -> Renewal cost - 15 Years | C21: NZ$: | D21: ='Model Inputs'!F32 -> 0 | F21: =-$D21*F$11*(1+$D$6)^F$4 -> 0 | G21: =-$D21*G$11*(1+$D$6)^G$4 -> 0 | H21: 0 | I21: 0 | J21: 0 | K21: 0 | L21: 0 | M21: 0 | N21: 0 | O21: 0 | P21: 0 | Q21: 0 | R21: 0 | S21: 0 | T21: 0 | U21: 0 | V21: 0 | W21: 0 | X21: 0 | Y21: 0 | Z21: 0 | AA21: 0 | AB21: 0 | AC21: 0 | AD21: 0 | AE21: 0 | AF21: 0 | AG21: 0 | AH21: 0 | AI21: 0 | AJ21: 0
B22: ='Model Inputs'!C33 -> Renewal cost - 20 Years | C22: NZ$: | D22: ='Model Inputs'!F33 -> 0 | F22: =-$D22*F$12*(1+$D$6)^F$4 -> 0 | G22: =-$D22*G$12*(1+$D$6)^G$4 -> 0 | H22: 0 | I22: 0 | J22: 0 | K22: 0 | L22: 0 | M22: 0 | N22: 0 | O22: 0 | P22: 0 | Q22: 0 | R22: 0 | S22: 0 | T22: 0 | U22: 0 | V22: 0 | W22: 0 | X22: 0 | Y22: 0 | Z22: 0 | AA22: 0 | AB22: 0 | AC22: 0 | AD22: 0 | AE22: 0 | AF22: 0 | AG22: 0 | AH22: 0 | AI22: 0 | AJ22: 0
B24: Total Cash Outflows | C24: NZ$: | E24: =SUM(E16:E22) -> -253000 | F24: =SUM(F16:F22) -> -20380 | G24: -20767.22 | H24: -21161.79718 | I24: -21563.87133 | J24: -21973.58488 | K24: -22391.08299 | L24: -22816.51357 | M24: -23250.02733 | N24: -23691.77785 | O24: -24141.92163 | P24: -24600.61814 | Q24: -25068.02988 | R24: -25544.32245 | S24: -26029.66458 | T24: -26524.2282 | U24: -27028.18854 | V24: -27541.72412 | W24: -28065.01688 | X24: -28598.2522 | Y24: -29141.61899 | Z24: -29695.30975 | AA24: -30259.52064 | AB24: -30834.45153 | AC24: -31420.30611 | AD24: -32017.29193 | AE24: -32625.62047 | AF24: -33245.50726 | AG24: -33877.1719 | AH24: -34520.83817 | AI24: -35176.73409 | AJ24: -1066952.213
B26: Revenue:
B27: Game revenue | C27: NZ$: | F27: ='Model Inputs'!$F$58*'Model Inputs'!$F$65*(1+$D$6)^F$4 -> 11151.7531 | G27: ='Model Inputs'!$F$58*'Model Inputs'!$F$65*(1+$D$6)^G$4 -> 11363.63641 | H27: ='Model Inputs'!$F$58*'Model Inputs'!$F$65*(1+$D$6)^H$4 -> 11579.5455 | I27: ='Model Inputs'!$F$58*'Model Inputs'!$F$65*(1+$D$6)^I$4 -> 11799.55687 | J27: ='Model Inputs'!$F$58*'Model Inputs'!$F$65*(1+$D$6)^J$4 -> 12023.74845 | K27: ='Model Inputs'!$F$58*'Model Inputs'!$F$65*(1+$D$6)^K$4 -> 12252.19967 | L27: ='Model Inputs'!$F$58*'Model Inputs'!$F$65*(1+$D$6)^L$4 -> 12484.99146 | M27: ='Model Inputs'!$F$58*'Model Inputs'!$F$65*(1+$D$6)^M$4 -> 12722.2063 | N27: ='Model Inputs'!$F$58*'Model Inputs'!$F$65*(1+$D$6)^N$4 -> 12963.92822 | O27: ='Model Inputs'!$F$58*'Model Inputs'!$F$65*(1+$D$6)^O$4 -> 13210.24286 | P27: ='Model Inputs'!$F$58*'Model Inputs'!$F$65*(1+$D$6)^P$4 -> 13461.23747 | Q27: ='Model Inputs'!$F$58*'Model Inputs'!$F$65*(1+$D$6)^Q$4 -> 13717.00098 | R27: ='Model Inputs'!$F$58*'Model Inputs'!$F$65*(1+$D$6)^R$4 -> 13977.624 | S27: ='Model Inputs'!$F$58*'Model Inputs'!$F$65*(1+$D$6)^S$4 -> 14243.19886 | T27: ='Model Inputs'!$F$58*'Model Inputs'!$F$65*(1+$D$6)^T$4 -> 14513.81964 | U27: ='Model Inputs'!$F$58*'Model Inputs'!$F$65*(1+$D$6)^U$4 -> 14789.58221 | V27: ='Model Inputs'!$F$58*'Model Inputs'!$F$65*(1+$D$6)^V$4 -> 15070.58427 | W27: ='Model Inputs'!$F$58*'Model Inputs'!$F$65*(1+$D$6)^W$4 -> 15356.92537 | X27: ='Model Inputs'!$F$58*'Model Inputs'!$F$65*(1+$D$6)^X$4 -> 15648.70695 | Y27: ='Model Inputs'!$F$58*'Model Inputs'!$F$65*(1+$D$6)^Y$4 -> 15946.03239 | Z27: ='Model Inputs'!$F$58*'Model Inputs'!$F$65*(1+$D$6)^Z$4 -> 16249.007 | AA27: ='Model Inputs'!$F$58*'Model Inputs'!$F$65*(1+$D$6)^AA$4 -> 16557.73814 | AB27: ='Model Inputs'!$F$58*'Model Inputs'!$F$65*(1+$D$6)^AB$4 -> 16872.33516 | AC27: ='Model Inputs'!$F$58*'Model Inputs'!$F$65*(1+$D$6)^AC$4 -> 17192.90953 | AD27: ='Model Inputs'!$F$58*'Model Inputs'!$F$65*(1+$D$6)^AD$4 -> 17519.57481 | AE27: ='Model Inputs'!$F$58*'Model Inputs'!$F$65*(1+$D$6)^AE$4 -> 17852.44673 | AF27: ='Model Inputs'!$F$58*'Model Inputs'!$F$65*(1+$D$6)^AF$4 -> 18191.64322 | AG27: ='Model Inputs'!$F$58*'Model Inputs'!$F$65*(1+$D$6)^AG$4 -> 18537.28444 | AH27: ='Model Inputs'!$F$58*'Model Inputs'!$F$65*(1+$D$6)^AH$4 -> 18889.49284 | AI27: ='Model Inputs'!$F$58*'Model Inputs'!$F$65*(1+$D$6)^AI$4 -> 19248.39321 | AJ27: =SUM(E27:AI27) -> 445387.3461
B28: Training revenue | C28: NZ$: | F28: ='Model Inputs'!$F$59*'Model Inputs'!$F$65*(1+$D$6)^F$4 -> 24162.13172 | G28: ='Model Inputs'!$F$59*'Model Inputs'!$F$65*(1+$D$6)^G$4 -> 24621.21223 | H28: ='Model Inputs'!$F$59*'Model Inputs'!$F$65*(1+$D$6)^H$4 -> 25089.01526 | I28: ='Model Inputs'!$F$59*'Model Inputs'!$F$65*(1+$D$6)^I$4 -> 25565.70655 | J28: ='Model Inputs'!$F$59*'Model Inputs'!$F$65*(1+$D$6)^J$4 -> 26051.45497 | K28: ='Model Inputs'!$F$59*'Model Inputs'!$F$65*(1+$D$6)^K$4 -> 26546.43262 | L28: ='Model Inputs'!$F$59*'Model Inputs'!$F$65*(1+$D$6)^L$4 -> 27050.81484 | M28: ='Model Inputs'!$F$59*'Model Inputs'!$F$65*(1+$D$6)^M$4 -> 27564.78032 | N28: ='Model Inputs'!$F$59*'Model Inputs'!$F$65*(1+$D$6)^N$4 -> 28088.51115 | O28: ='Model Inputs'!$F$59*'Model Inputs'!$F$65*(1+$D$6)^O$4 -> 28622.19286 | P28: ='Model Inputs'!$F$59*'Model Inputs'!$F$65*(1+$D$6)^P$4 -> 29166.01452 | Q28: ='Model Inputs'!$F$59*'Model Inputs'!$F$65*(1+$D$6)^Q$4 -> 29720.1688 | R28: ='Model Inputs'!$F$59*'Model Inputs'!$F$65*(1+$D$6)^R$4 -> 30284.852 | S28: ='Model Inputs'!$F$59*'Model Inputs'!$F$65*(1+$D$6)^S$4 -> 30860.26419 | T28: ='Model Inputs'!$F$59*'Model Inputs'!$F$65*(1+$D$6)^T$4 -> 31446.60921 | U28: ='Model Inputs'!$F$59*'Model Inputs'!$F$65*(1+$D$6)^U$4 -> 32044.09479 | V28: ='Model Inputs'!$F$59*'Model Inputs'!$F$65*(1+$D$6)^V$4 -> 32652.93259 | W28: ='Model Inputs'!$F$59*'Model Inputs'!$F$65*(1+$D$6)^W$4 -> 33273.33831 | X28: ='Model Inputs'!$F$59*'Model Inputs'!$F$65*(1+$D$6)^X$4 -> 33905.53174 | Y28: ='Model Inputs'!$F$59*'Model Inputs'!$F$65*(1+$D$6)^Y$4 -> 34549.73684 | Z28: ='Model Inputs'!$F$59*'Model Inputs'!$F$65*(1+$D$6)^Z$4 -> 35206.18184 | AA28: ='Model Inputs'!$F$59*'Model Inputs'!$F$65*(1+$D$6)^AA$4 -> 35875.09929 | AB28: ='Model Inputs'!$F$59*'Model Inputs'!$F$65*(1+$D$6)^AB$4 -> 36556.72618 | AC28: ='Model Inputs'!$F$59*'Model Inputs'!$F$65*(1+$D$6)^AC$4 -> 37251.30398 | AD28: ='Model Inputs'!$F$59*'Model Inputs'!$F$65*(1+$D$6)^AD$4 -> 37959.07875 | AE28: ='Model Inputs'!$F$59*'Model Inputs'!$F$65*(1+$D$6)^AE$4 -> 38680.30125 | AF28: ='Model Inputs'!$F$59*'Model Inputs'!$F$65*(1+$D$6)^AF$4 -> 39415.22697 | AG28: ='Model Inputs'!$F$59*'Model Inputs'!$F$65*(1+$D$6)^AG$4 -> 40164.11629 | AH28: ='Model Inputs'!$F$59*'Model Inputs'!$F$65*(1+$D$6)^AH$4 -> 40927.23449 | AI28: ='Model Inputs'!$F$59*'Model Inputs'!$F$65*(1+$D$6)^AI$4 -> 41704.85195 | AJ28: 965005.9165
B29: Total Revenue | C29: NZ$: | E29: =SUM(E27:E28) -> 0 | F29: =SUM(F27:F28) -> 35313.88483 | G29: 35984.84864 | H29: 36668.56076 | I29: 37365.26342 | J29: 38075.20342 | K29: 38798.63229 | L29: 39535.8063 | M29: 40286.98662 | N29: 41052.43937 | O29: 41832.43571 | P29: 42627.25199 | Q29: 43437.16978 | R29: 44262.47601 | S29: 45103.46305 | T29: 45960.42885 | U29: 46833.677 | V29: 47723.51686 | W29: 48630.26368 | X29: 49554.23869 | Y29: 50495.76923 | Z29: 51455.18884 | AA29: 52432.83743 | AB29: 53429.06134 | AC29: 54444.21351 | AD29: 55478.65356 | AE29: 56532.74798 | AF29: 57606.87019 | AG29: 58701.40073 | AH29: 59816.72734 | AI29: 60953.24516 | AJ29: 1410393.263
B31: Net Cash flow | C31: NZ$: | E31: =E29+E24 -> -253000 | F31: 14933.88483 | G31: 15217.62864 | H31: 15506.76358 | I31: 15801.39209 | J31: 16101.61854 | K31: 16407.54929 | L31: 16719.29273 | M31: 17036.95929 | N31: 17360.66152 | O31: 17690.51409 | P31: 18026.63385 | Q31: 18369.1399 | R31: 18718.15356 | S31: 19073.79847 | T31: 19436.20064 | U31: 19805.48846 | V31: 20181.79274 | W31: 20565.2468 | X31: 20955.98649 | Y31: 21354.15023 | Z31: 21759.87909 | AA31: 22173.31679 | AB31: 22594.60981 | AC31: 23023.90739 | AD31: 23461.36164 | AE31: 23907.12751 | AF31: 24361.36293 | AG31: 24824.22882 | AH31: 25295.88917 | AI31: 25776.51107 | AJ31: 343441.05
B32: Cumulative Cash Flow | C32: NZ$: | E32: =E31 -> -253000 | F32: =E32+F31 -> -238066.1152 | G32: =F32+G31 -> -222848.4865 | H32: -207341.723 | I32: -191540.3309 | J32: -175438.7123 | K32: -159031.163 | L32: -142311.8703 | M32: -125274.911 | N32: -107914.2495 | O32: -90223.7354 | P32: -72197.10154 | Q32: -53827.96164 | R32: -35109.80809 | S32: -16036.00961 | T32: 3400.191032 | U32: 23205.67949 | V32: 43387.47223 | W32: 63952.71903 | X32: 84908.70552 | Y32: 106262.8557 | Z32: 128022.7348 | AA32: 150196.0516 | AB32: 172790.6614 | AC32: 195814.5688 | AD32: 219275.9305 | AE32: 243183.058 | AF32: 267544.4209 | AG32: 292368.6497 | AH32: 317664.5389 | AI32: 343441.05
B33: Discounted cashflow | C33: NZ$: | E33: =E31/(1+'Model Inputs'!$F$9)^E$4 -> -253000 | F33: =F31/(1+'Model Inputs'!$F$9)^F4 -> 14089.89983 | G33: =G31/(1+'Model Inputs'!$F$9)^G4 -> 13546.19108 | H33: =H31/(1+'Model Inputs'!$F$9)^H4 -> 13023.46326 | I33: =I31/(1+'Model Inputs'!$F$9)^I4 -> 12520.90675 | J33: =J31/(1+'Model Inputs'!$F$9)^J4 -> 12037.74316 | K33: =K31/(1+'Model Inputs'!$F$9)^K4 -> 11573.22415 | L33: =L31/(1+'Model Inputs'!$F$9)^L4 -> 11126.63026 | M33: =M31/(1+'Model Inputs'!$F$9)^M4 -> 10697.26978 | N33: =N31/(1+'Model Inputs'!$F$9)^N4 -> 10284.47769 | O33: =O31/(1+'Model Inputs'!$F$9)^O4 -> 9887.614647 | P33: =P31/(1+'Model Inputs'!$F$9)^P4 -> 9506.065973 | Q33: =Q31/(1+'Model Inputs'!$F$9)^Q4 -> 9139.240708 | R33: =R31/(1+'Model Inputs'!$F$9)^R4 -> 8786.570697 | S33: =S31/(1+'Model Inputs'!$F$9)^S4 -> 8447.509709 | T33: =T31/(1+'Model Inputs'!$F$9)^T4 -> 8121.532591 | U33: =U31/(1+'Model Inputs'!$F$9)^U4 -> 7808.134456 | V33: =V31/(1+'Model Inputs'!$F$9)^V4 -> 7506.8299 | W33: =W31/(1+'Model Inputs'!$F$9)^W4 -> 7217.152248 | X33: =X31/(1+'Model Inputs'!$F$9)^X4 -> 6938.652836 | Y33: =Y31/(1+'Model Inputs'!$F$9)^Y4 -> 6670.900311 | Z33: =Z31/(1+'Model Inputs'!$F$9)^Z4 -> 6413.479967 | AA33: =AA31/(1+'Model Inputs'!$F$9)^AA4 -> 6165.9931 | AB33: =AB31/(1+'Model Inputs'!$F$9)^AB4 -> 5928.056391 | AC33: =AC31/(1+'Model Inputs'!$F$9)^AC4 -> 5699.301314 | AD33: =AD31/(1+'Model Inputs'!$F$9)^AD4 -> 5479.373562 | AE33: =AE31/(1+'Model Inputs'!$F$9)^AE4 -> 5267.932503 | AF33: =AF31/(1+'Model Inputs'!$F$9)^AF4 -> 5064.650647 | AG33: =AG31/(1+'Model Inputs'!$F$9)^AG4 -> 4869.213142 | AH33: =AH31/(1+'Model Inputs'!$F$9)^AH4 -> 4681.317286 | AI33: =AI31/(1+'Model Inputs'!$F$9)^AI4 -> 4500.672058 | AJ33: =SUM(E33:AI33) -> 0
B35: Net Present Value | C35: NZ$: | E35: =AJ33 -> 0 | AJ35: =SUM(E35:AI35) -> 0
B36: Discounted costs | C36: NZ$: | E36: =E24/(1+'Model Inputs'!$F$9)^E$4 -> -253000 | F36: =F24/(1+'Model Inputs'!$F$9)^F$4 -> -19228.22908 | G36: =G24/(1+'Model Inputs'!$F$9)^G$4 -> -18486.23967 | H36: =H24/(1+'Model Inputs'!$F$9)^H$4 -> -17772.88256 | I36: =I24/(1+'Model Inputs'!$F$9)^I$4 -> -17087.05286 | J36: =J24/(1+'Model Inputs'!$F$9)^J$4 -> -16427.68834 | K36: =K24/(1+'Model Inputs'!$F$9)^K$4 -> -15793.76773 | L36: =L24/(1+'Model Inputs'!$F$9)^L$4 -> -15184.3092 | M36: =M24/(1+'Model Inputs'!$F$9)^M$4 -> -14598.36878 | N36: =N24/(1+'Model Inputs'!$F$9)^N$4 -> -14035.03895 | O36: =O24/(1+'Model Inputs'!$F$9)^O$4 -> -13493.44721 | P36: =P24/(1+'Model Inputs'!$F$9)^P$4 -> -12972.7547 | Q36: =Q24/(1+'Model Inputs'!$F$9)^Q$4 -> -12472.15495 | R36: =R24/(1+'Model Inputs'!$F$9)^R$4 -> -11990.87263 | S36: =S24/(1+'Model Inputs'!$F$9)^S$4 -> -11528.16229 | T36: =T24/(1+'Model Inputs'!$F$9)^T$4 -> -11083.30726 | U36: =U24/(1+'Model Inputs'!$F$9)^U$4 -> -10655.61855 | V36: =V24/(1+'Model Inputs'!$F$9)^V$4 -> -10244.43372 | W36: =W24/(1+'Model Inputs'!$F$9)^W$4 -> -9849.115921 | X36: =X24/(1+'Model Inputs'!$F$9)^X$4 -> -9469.052858 | Y36: =Y24/(1+'Model Inputs'!$F$9)^Y$4 -> -9103.655875 | Z36: =Z24/(1+'Model Inputs'!$F$9)^Z$4 -> -8752.359031 | AA36: =AA24/(1+'Model Inputs'!$F$9)^AA$4 -> -8414.618221 | AB36: =AB24/(1+'Model Inputs'!$F$9)^AB$4 -> -8089.910338 | AC36: =AC24/(1+'Model Inputs'!$F$9)^AC$4 -> -7777.73246 | AD36: =AD24/(1+'Model Inputs'!$F$9)^AD$4 -> -7477.601072 | AE36: =AE24/(1+'Model Inputs'!$F$9)^AE$4 -> -7189.051319 | AF36: =AF24/(1+'Model Inputs'!$F$9)^AF$4 -> -6911.636281 | AG36: =AG24/(1+'Model Inputs'!$F$9)^AG$4 -> -6644.926285 | AH36: =AH24/(1+'Model Inputs'!$F$9)^AH$4 -> -6388.508241 | AI36: =AI24/(1+'Model Inputs'!$F$9)^AI$4 -> -6141.984996 | AJ36: =SUM(E36:AI36) -> -598264.4814
B37: Discounted revenues | C37: NZ$: | E37: =E29/(1+'Model Inputs'!$F$9)^E$4 -> 0 | F37: =F29/(1+'Model Inputs'!$F$9)^F$4 -> 33318.12891 | G37: =G29/(1+'Model Inputs'!$F$9)^G$4 -> 32032.43075 | H37: =H29/(1+'Model Inputs'!$F$9)^H$4 -> 30796.34582 | I37: =I29/(1+'Model Inputs'!$F$9)^I$4 -> 29607.95961 | J37: =J29/(1+'Model Inputs'!$F$9)^J$4 -> 28465.4315 | K37: =K29/(1+'Model Inputs'!$F$9)^K$4 -> 27366.99188 | L37: =L29/(1+'Model Inputs'!$F$9)^L$4 -> 26310.93946 | M37: =M29/(1+'Model Inputs'!$F$9)^M$4 -> 25295.63856 | N37: =N29/(1+'Model Inputs'!$F$9)^N$4 -> 24319.51664 | O37: =O29/(1+'Model Inputs'!$F$9)^O$4 -> 23381.06185 | P37: =P29/(1+'Model Inputs'!$F$9)^P$4 -> 22478.82067 | Q37: =Q29/(1+'Model Inputs'!$F$9)^Q$4 -> 21611.39566 | R37: =R29/(1+'Model Inputs'!$F$9)^R$4 -> 20777.44332 | S37: =S29/(1+'Model Inputs'!$F$9)^S$4 -> 19975.672 | T37: =T29/(1+'Model Inputs'!$F$9)^T$4 -> 19204.83986 | U37: =U29/(1+'Model Inputs'!$F$9)^U$4 -> 18463.75301 | V37: =V29/(1+'Model Inputs'!$F$9)^V$4 -> 17751.26362 | W37: =W29/(1+'Model Inputs'!$F$9)^W$4 -> 17066.26817 | X37: =X29/(1+'Model Inputs'!$F$9)^X$4 -> 16407.70569 | Y37: =Y29/(1+'Model Inputs'!$F$9)^Y$4 -> 15774.55619 | Z37: =Z29/(1+'Model Inputs'!$F$9)^Z$4 -> 15165.839 | AA37: =AA29/(1+'Model Inputs'!$F$9)^AA$4 -> 14580.61132 | AB37: =AB29/(1+'Model Inputs'!$F$9)^AB$4 -> 14017.96673 | AC37: =AC29/(1+'Model Inputs'!$F$9)^AC$4 -> 13477.03377 | AD37: =AD29/(1+'Model Inputs'!$F$9)^AD$4 -> 12956.97463 | AE37: =AE29/(1+'Model Inputs'!$F$9)^AE$4 -> 12456.98382 | AF37: =AF29/(1+'Model Inputs'!$F$9)^AF$4 -> 11976.28693 | AG37: =AG29/(1+'Model Inputs'!$F$9)^AG$4 -> 11514.13943 | AH37: =AH29/(1+'Model Inputs'!$F$9)^AH$4 -> 11069.82553 | AI37: =AI29/(1+'Model Inputs'!$F$9)^AI$4 -> 10642.65705 | AJ37: =SUM(E37:AI37) -> 598264.4814
B39: SAND-CARPET
B40: COSTS
B41: Construction | C41: NZ$: | D41: ='Model Inputs'!$G$20 -> 960000 | E41: =-$D41*E$7 -> -960000 | F41: =-$D41*F$7 -> 0 | G41: 0 | H41: 0 | I41: 0 | J41: 0 | K41: 0 | L41: 0 | M41: 0 | N41: 0 | O41: 0 | P41: 0 | Q41: 0 | R41: 0 | S41: 0 | T41: 0 | U41: 0 | V41: 0 | W41: 0 | X41: 0 | Y41: 0 | Z41: 0 | AA41: 0 | AB41: 0 | AC41: 0 | AD41: 0 | AE41: 0 | AF41: 0 | AG41: 0 | AH41: 0 | AI41: 0 | AJ41: =SUM(E41:AI41) -> -960000
B42: Maintenance | C42: NZ$: | D42: ='Model Inputs'!G27 -> 90000 | F42: =-$D42*(1+$D$6)^F$4 -> -91710 | G42: =-$D42*(1+$D$6)^G$4 -> -93452.49 | H42: -95228.08731 | I42: -97037.42097 | J42: -98881.13197 | K42: -100759.8735 | L42: -102674.3111 | M42: -104625.123 | N42: -106613.0003 | O42: -108638.6473 | P42: -110702.7816 | Q42: -112806.1345 | R42: -114949.451 | S42: -117133.4906 | T42: -119359.0269 | U42: -121626.8484 | V42: -123937.7586 | W42: -126292.576 | X42: -128692.1349 | Y42: -131137.2855 | Z42: -133628.8939 | AA42: -136167.8429 | AB42: -138755.0319 | AC42: -141391.3775 | AD42: -144077.8137 | AE42: -146815.2921 | AF42: -149604.7827 | AG42: -152447.2736 | AH42: -155343.7718 | AI42: -158295.3034 | AJ42: =SUM(E42:AI42) -> -3662784.957
B43: Replacement costs:
B44: ='Model Inputs'!C30 -> Renewal cost - 3 Years | C44: NZ$: | D44: ='Model Inputs'!G30 -> 0 | F44: =-$D44*F$9*(1+$D$6)^F$4 -> 0 | G44: =-$D44*G$9*(1+$D$6)^G$4 -> 0 | H44: 0 | I44: 0 | J44: 0 | K44: 0 | L44: 0 | M44: 0 | N44: 0 | O44: 0 | P44: 0 | Q44: 0 | R44: 0 | S44: 0 | T44: 0 | U44: 0 | V44: 0 | W44: 0 | X44: 0 | Y44: 0 | Z44: 0 | AA44: 0 | AB44: 0 | AC44: 0 | AD44: 0 | AE44: 0 | AF44: 0 | AG44: 0 | AH44: 0 | AI44: 0 | AJ44: =SUM(E44:AI44) -> 0
B45: ='Model Inputs'!C31 -> Renewal cost - 10 Years | C45: NZ$: | D45: ='Model Inputs'!G31 -> 250000 | F45: =-$D45*F$10*(1+$D$6)^F$4 -> 0 | G45: =-$D45*G$10*(1+$D$6)^G$4 -> 0 | H45: 0 | I45: 0 | J45: 0 | K45: 0 | L45: 0 | M45: 0 | N45: 0 | O45: -301774.0203 | P45: 0 | Q45: 0 | R45: 0 | S45: 0 | T45: 0 | U45: 0 | V45: 0 | W45: 0 | X45: 0 | Y45: -364270.2374 | Z45: 0 | AA45: 0 | AB45: 0 | AC45: 0 | AD45: 0 | AE45: 0 | AF45: 0 | AG45: 0 | AH45: 0 | AI45: -439709.1761 | AJ45: -1105753.434
B46: ='Model Inputs'!C32 -> Renewal cost - 15 Years | C46: NZ$: | D46: ='Model Inputs'!G32 -> 0 | F46: =-$D46*F$11*(1+$D$6)^F$4 -> 0 | G46: =-$D46*G$11*(1+$D$6)^G$4 -> 0 | H46: 0 | I46: 0 | J46: 0 | K46: 0 | L46: 0 | M46: 0 | N46: 0 | O46: 0 | P46: 0 | Q46: 0 | R46: 0 | S46: 0 | T46: 0 | U46: 0 | V46: 0 | W46: 0 | X46: 0 | Y46: 0 | Z46: 0 | AA46: 0 | AB46: 0 | AC46: 0 | AD46: 0 | AE46: 0 | AF46: 0 | AG46: 0 | AH46: 0 | AI46: 0 | AJ46: 0
B47: ='Model Inputs'!C33 -> Renewal cost - 20 Years | C47: NZ$: | D47: ='Model Inputs'!G33 -> 0 | F47: =-$D47*F$12*(1+$D$6)^F$4 -> 0 | G47: =-$D47*G$12*(1+$D$6)^G$4 -> 0 | H47: 0 | I47: 0 | J47: 0 | K47: 0 | L47: 0 | M47: 0 | N47: 0 | O47: 0 | P47: 0 | Q47: 0 | R47: 0 | S47: 0 | T47: 0 | U47: 0 | V47: 0 | W47: 0 | X47: 0 | Y47: 0 | Z47: 0 | AA47: 0 | AB47: 0 | AC47: 0 | AD47: 0 | AE47: 0 | AF47: 0 | AG47: 0 | AH47: 0 | AI47: 0 | AJ47: 0
B49: Total costs | C49: NZ$: | E49: =SUM(E41:E48) -> -960000 | F49: =SUM(F41:F48) -> -91710 | G49: -93452.49 | H49: -95228.08731 | I49: -97037.42097 | J49: -98881.13197 | K49: -100759.8735 | L49: -102674.3111 | M49: -104625.123 | N49: -106613.0003 | O49: -410412.6677 | P49: -110702.7816 | Q49: -112806.1345 | R49: -114949.451 | S49: -117133.4906 | T49: -119359.0269 | U49: -121626.8484 | V49: -123937.7586 | W49: -126292.576 | X49: -128692.1349 | Y49: -495407.5229 | Z49: -133628.8939 | AA49: -136167.8429 | AB49: -138755.0319 | AC49: -141391.3775 | AD49: -144077.8137 | AE49: -146815.2921 | AF49: -149604.7827 | AG49: -152447.2736 | AH49: -155343.7718 | AI49: -598004.4796 | AJ49: =SUM(E49:AI49) -> -5728538.391
B51: Revenue:
B52: Game revenue | C52: NZ$: | F52: ='Model Inputs'!$G58*'Model Inputs'!$G$65*(1+$D$6)^F$4 -> 37684.66168 | G52: ='Model Inputs'!$G58*'Model Inputs'!$G$65*(1+$D$6)^G$4 -> 38400.67026 | H52: ='Model Inputs'!$G58*'Model Inputs'!$G$65*(1+$D$6)^H$4 -> 39130.28299 | I52: ='Model Inputs'!$G58*'Model Inputs'!$G$65*(1+$D$6)^I$4 -> 39873.75837 | J52: ='Model Inputs'!$G58*'Model Inputs'!$G$65*(1+$D$6)^J$4 -> 40631.35978 | K52: ='Model Inputs'!$G58*'Model Inputs'!$G$65*(1+$D$6)^K$4 -> 41403.35561 | L52: ='Model Inputs'!$G58*'Model Inputs'!$G$65*(1+$D$6)^L$4 -> 42190.01937 | M52: ='Model Inputs'!$G58*'Model Inputs'!$G$65*(1+$D$6)^M$4 -> 42991.62974 | N52: ='Model Inputs'!$G58*'Model Inputs'!$G$65*(1+$D$6)^N$4 -> 43808.4707 | O52: ='Model Inputs'!$G58*'Model Inputs'!$G$65*(1+$D$6)^O$4 -> 44640.83164 | P52: ='Model Inputs'!$G58*'Model Inputs'!$G$65*(1+$D$6)^P$4 -> 45489.00745 | Q52: ='Model Inputs'!$G58*'Model Inputs'!$G$65*(1+$D$6)^Q$4 -> 46353.29859 | R52: ='Model Inputs'!$G58*'Model Inputs'!$G$65*(1+$D$6)^R$4 -> 47234.01126 | S52: ='Model Inputs'!$G58*'Model Inputs'!$G$65*(1+$D$6)^S$4 -> 48131.45747 | T52: ='Model Inputs'!$G58*'Model Inputs'!$G$65*(1+$D$6)^T$4 -> 49045.95517 | U52: ='Model Inputs'!$G58*'Model Inputs'!$G$65*(1+$D$6)^U$4 -> 49977.82831 | V52: ='Model Inputs'!$G58*'Model Inputs'!$G$65*(1+$D$6)^V$4 -> 50927.40705 | W52: ='Model Inputs'!$G58*'Model Inputs'!$G$65*(1+$D$6)^W$4 -> 51895.02779 | X52: ='Model Inputs'!$G58*'Model Inputs'!$G$65*(1+$D$6)^X$4 -> 52881.03331 | Y52: ='Model Inputs'!$G58*'Model Inputs'!$G$65*(1+$D$6)^Y$4 -> 53885.77295 | Z52: ='Model Inputs'!$G58*'Model Inputs'!$G$65*(1+$D$6)^Z$4 -> 54909.60263 | AA52: ='Model Inputs'!$G58*'Model Inputs'!$G$65*(1+$D$6)^AA$4 -> 55952.88508 | AB52: ='Model Inputs'!$G58*'Model Inputs'!$G$65*(1+$D$6)^AB$4 -> 57015.9899 | AC52: ='Model Inputs'!$G58*'Model Inputs'!$G$65*(1+$D$6)^AC$4 -> 58099.29371 | AD52: ='Model Inputs'!$G58*'Model Inputs'!$G$65*(1+$D$6)^AD$4 -> 59203.18029 | AE52: ='Model Inputs'!$G58*'Model Inputs'!$G$65*(1+$D$6)^AE$4 -> 60328.04071 | AF52: ='Model Inputs'!$G58*'Model Inputs'!$G$65*(1+$D$6)^AF$4 -> 61474.27349 | AG52: ='Model Inputs'!$G58*'Model Inputs'!$G$65*(1+$D$6)^AG$4 -> 62642.28468 | AH52: ='Model Inputs'!$G58*'Model Inputs'!$G$65*(1+$D$6)^AH$4 -> 63832.48809 | AI52: ='Model Inputs'!$G58*'Model Inputs'!$G$65*(1+$D$6)^AI$4 -> 65045.30537 | AJ52: =SUM(E52:AI52) -> 1505079.183
B53: Training revenue | C53: NZ$: | F53: ='Model Inputs'!$G59*'Model Inputs'!$G$65*(1+$D$6)^F$4 -> 131896.3159 | G53: ='Model Inputs'!$G59*'Model Inputs'!$G$65*(1+$D$6)^G$4 -> 134402.3459 | H53: ='Model Inputs'!$G59*'Model Inputs'!$G$65*(1+$D$6)^H$4 -> 136955.9905 | I53: ='Model Inputs'!$G59*'Model Inputs'!$G$65*(1+$D$6)^I$4 -> 139558.1543 | J53: ='Model Inputs'!$G59*'Model Inputs'!$G$65*(1+$D$6)^J$4 -> 142209.7592 | K53: ='Model Inputs'!$G59*'Model Inputs'!$G$65*(1+$D$6)^K$4 -> 144911.7446 | L53: ='Model Inputs'!$G59*'Model Inputs'!$G$65*(1+$D$6)^L$4 -> 147665.0678 | M53: ='Model Inputs'!$G59*'Model Inputs'!$G$65*(1+$D$6)^M$4 -> 150470.7041 | N53: ='Model Inputs'!$G59*'Model Inputs'!$G$65*(1+$D$6)^N$4 -> 153329.6475 | O53: ='Model Inputs'!$G59*'Model Inputs'!$G$65*(1+$D$6)^O$4 -> 156242.9108 | P53: ='Model Inputs'!$G59*'Model Inputs'!$G$65*(1+$D$6)^P$4 -> 159211.5261 | Q53: ='Model Inputs'!$G59*'Model Inputs'!$G$65*(1+$D$6)^Q$4 -> 162236.5451 | R53: ='Model Inputs'!$G59*'Model Inputs'!$G$65*(1+$D$6)^R$4 -> 165319.0394 | S53: ='Model Inputs'!$G59*'Model Inputs'!$G$65*(1+$D$6)^S$4 -> 168460.1012 | T53: ='Model Inputs'!$G59*'Model Inputs'!$G$65*(1+$D$6)^T$4 -> 171660.8431 | U53: ='Model Inputs'!$G59*'Model Inputs'!$G$65*(1+$D$6)^U$4 -> 174922.3991 | V53: ='Model Inputs'!$G59*'Model Inputs'!$G$65*(1+$D$6)^V$4 -> 178245.9247 | W53: ='Model Inputs'!$G59*'Model Inputs'!$G$65*(1+$D$6)^W$4 -> 181632.5973 | X53: ='Model Inputs'!$G59*'Model Inputs'!$G$65*(1+$D$6)^X$4 -> 185083.6166 | Y53: ='Model Inputs'!$G59*'Model Inputs'!$G$65*(1+$D$6)^Y$4 -> 188600.2053 | Z53: ='Model Inputs'!$G59*'Model Inputs'!$G$65*(1+$D$6)^Z$4 -> 192183.6092 | AA53: ='Model Inputs'!$G59*'Model Inputs'!$G$65*(1+$D$6)^AA$4 -> 195835.0978 | AB53: ='Model Inputs'!$G59*'Model Inputs'!$G$65*(1+$D$6)^AB$4 -> 199555.9647 | AC53: ='Model Inputs'!$G59*'Model Inputs'!$G$65*(1+$D$6)^AC$4 -> 203347.528 | AD53: ='Model Inputs'!$G59*'Model Inputs'!$G$65*(1+$D$6)^AD$4 -> 207211.131 | AE53: ='Model Inputs'!$G59*'Model Inputs'!$G$65*(1+$D$6)^AE$4 -> 211148.1425 | AF53: ='Model Inputs'!$G59*'Model Inputs'!$G$65*(1+$D$6)^AF$4 -> 215159.9572 | AG53: ='Model Inputs'!$G59*'Model Inputs'!$G$65*(1+$D$6)^AG$4 -> 219247.9964 | AH53: ='Model Inputs'!$G59*'Model Inputs'!$G$65*(1+$D$6)^AH$4 -> 223413.7083 | AI53: ='Model Inputs'!$G59*'Model Inputs'!$G$65*(1+$D$6)^AI$4 -> 227658.5688 | AJ53: 5267777.142
B54: Total Revenue | C54: NZ$: | E54: =SUM(E52:E53) -> 0 | F54: 169580.9776 | G54: 172803.0162 | H54: 176086.2735 | I54: 179431.9127 | J54: 182841.119 | K54: 186315.1003 | L54: 189855.0872 | M54: 193462.3338 | N54: 197138.1182 | O54: 200883.7424 | P54: 204700.5335 | Q54: 208589.8436 | R54: 212553.0507 | S54: 216591.5586 | T54: 220706.7983 | U54: 224900.2274 | V54: 229173.3317 | W54: 233527.625 | X54: 237964.6499 | Y54: 242485.9783 | Z54: 247093.2119 | AA54: 251787.9829 | AB54: 256571.9546 | AC54: 261446.8217 | AD54: 266414.3113 | AE54: 271476.1832 | AF54: 276634.2307 | AG54: 281890.2811 | AH54: 287246.1964 | AI54: 292703.8742 | AJ54: 6772856.326
B56: Net Cash flow | C56: NZ$: | E56: =E54+E49 -> -960000 | F56: 77870.97758 | G56: 79350.52615 | H56: 80858.18615 | I56: 82394.49168 | J56: 83959.98703 | K56: 85555.22678 | L56: 87180.77609 | M56: 88837.21083 | N56: 90525.11784 | O56: -209528.9253 | P56: 93997.75189 | Q56: 95783.70917 | R56: 97603.59965 | S56: 99458.06804 | T56: 101347.7713 | U56: 103273.379 | V56: 105235.5732 | W56: 107235.0491 | X56: 109272.515 | Y56: -252921.5446 | Z56: 113464.318 | AA56: 115620.14 | AB56: 117816.9227 | AC56: 120055.4442 | AD56: 122336.4976 | AE56: 124660.8911 | AF56: 127029.448 | AG56: 129443.0075 | AH56: 131902.4247 | AI56: -305300.6054 | AJ56: =SUM(E56:AI56) -> 1044317.935
B57: Cumulative Cash Flow | C57: NZ$: | E57: =E56 -> -960000 | F57: =E57+F56 -> -882129.0224 | G57: =F57+G56 -> -802778.4963 | H57: =G57+H56 -> -721920.3101 | I57: =H57+I56 -> -639525.8184 | J57: =I57+J56 -> -555565.8314 | K57: =J57+K56 -> -470010.6046 | L57: =K57+L56 -> -382829.8285 | M57: =L57+M56 -> -293992.6177 | N57: =M57+N56 -> -203467.4999 | O57: =N57+O56 -> -412996.4251 | P57: =O57+P56 -> -318998.6733 | Q57: =P57+Q56 -> -223214.9641 | R57: =Q57+R56 -> -125611.3644 | S57: =R57+S56 -> -26153.2964 | T57: =S57+T56 -> 75194.47493 | U57: =T57+U56 -> 178467.8539 | V57: =U57+V56 -> 283703.4271 | W57: =V57+W56 -> 390938.4762 | X57: =W57+X56 -> 500210.9912 | Y57: =X57+Y56 -> 247289.4466 | Z57: =Y57+Z56 -> 360753.7645 | AA57: =Z57+AA56 -> 476373.9045 | AB57: =AA57+AB56 -> 594190.8272 | AC57: =AB57+AC56 -> 714246.2714 | AD57: =AC57+AD56 -> 836582.769 | AE57: =AD57+AE56 -> 961243.6601 | AF57: =AE57+AF56 -> 1088273.108 | AG57: =AF57+AG56 -> 1217716.116 | AH57: =AG57+AH56 -> 1349618.54 | AI57: =AH57+AI56 -> 1044317.935
B58: Discounted cashflow | C58: NZ$: | E58: =E56/(1+'Model Inputs'!$F$9)^E4 -> -960000 | F58: =F56/(1+'Model Inputs'!$F$9)^F$4 -> 73470.11754 | G58: =G56/(1+'Model Inputs'!$F$9)^G$4 -> 70635.01252 | H58: =H56/(1+'Model Inputs'!$F$9)^H$4 -> 67909.31008 | I58: =I56/(1+'Model Inputs'!$F$9)^I$4 -> 65288.78854 | J58: =J56/(1+'Model Inputs'!$F$9)^J$4 -> 62769.38912 | K58: =K56/(1+'Model Inputs'!$F$9)^K$4 -> 60347.20965 | L58: =L56/(1+'Model Inputs'!$F$9)^L$4 -> 58018.49857 | M58: =M56/(1+'Model Inputs'!$F$9)^M$4 -> 55779.64906 | N58: =N56/(1+'Model Inputs'!$F$9)^N$4 -> 53627.1935 | O58: =O56/(1+'Model Inputs'!$F$9)^O$4 -> -117110.292 | P58: =P56/(1+'Model Inputs'!$F$9)^P$4 -> 49568.25761 | Q58: =Q56/(1+'Model Inputs'!$F$9)^Q$4 -> 47655.49062 | R58: =R56/(1+'Model Inputs'!$F$9)^R$4 -> 45816.53452 | S58: =S56/(1+'Model Inputs'!$F$9)^S$4 -> 44048.54107 | T58: =T56/(1+'Model Inputs'!$F$9)^T$4 -> 42348.77191 | U58: =U56/(1+'Model Inputs'!$F$9)^U$4 -> 40714.59437 | V58: =V56/(1+'Model Inputs'!$F$9)^V$4 -> 39143.47737 | W58: =W56/(1+'Model Inputs'!$F$9)^W$4 -> 37632.98749 | X58: =X56/(1+'Model Inputs'!$F$9)^X$4 -> 36180.78522 | Y58: =Y56/(1+'Model Inputs'!$F$9)^Y$4 -> -79011.07712 | Z58: =Z56/(1+'Model Inputs'!$F$9)^Z$4 -> 33442.33336 | AA58: =AA56/(1+'Model Inputs'!$F$9)^AA$4 -> 32151.84233 | AB58: =AB56/(1+'Model Inputs'!$F$9)^AB$4 -> 30911.14949 | AC58: =AC56/(1+'Model Inputs'!$F$9)^AC$4 -> 29718.33317 | AD58: =AD56/(1+'Model Inputs'!$F$9)^AD$4 -> 28571.5459 | AE58: =AE56/(1+'Model Inputs'!$F$9)^AE$4 -> 27469.01148 | AF58: =AF56/(1+'Model Inputs'!$F$9)^AF$4 -> 26409.02227 | AG58: =AG56/(1+'Model Inputs'!$F$9)^AG$4 -> 25389.93649 | AH58: =AH56/(1+'Model Inputs'!$F$9)^AH$4 -> 24410.17576 | AI58: =AI56/(1+'Model Inputs'!$F$9)^AI$4 -> -53306.58989 | AJ58: =SUM(E58:AI58) -> -6.548361853e-11
B60: Net Present Value | C60: NZ$: | E60: =AJ58 -> -6.548361853e-11 | AJ60: -6.548361853e-11
B61: =B36 -> Discounted costs | C61: NZ$: | E61: =E49/(1+'Model Inputs'!$F$9)^E$4 -> -960000 | F61: =F49/(1+'Model Inputs'!$F$9)^F$4 -> -86527.03085 | G61: =G49/(1+'Model Inputs'!$F$9)^G$4 -> -83188.07853 | H61: =H49/(1+'Model Inputs'!$F$9)^H$4 -> -79977.97153 | I61: =I49/(1+'Model Inputs'!$F$9)^I$4 -> -76891.73789 | J61: =J49/(1+'Model Inputs'!$F$9)^J$4 -> -73924.59752 | K61: =K49/(1+'Model Inputs'!$F$9)^K$4 -> -71071.95478 | L61: =L49/(1+'Model Inputs'!$F$9)^L$4 -> -68329.39138 | M61: =M49/(1+'Model Inputs'!$F$9)^M$4 -> -65692.65951 | N61: =N49/(1+'Model Inputs'!$F$9)^N$4 -> -63157.67529 | O61: =O49/(1+'Model Inputs'!$F$9)^O$4 -> -229388.6025 | P61: =P49/(1+'Model Inputs'!$F$9)^P$4 -> -58377.39613 | Q61: =Q49/(1+'Model Inputs'!$F$9)^Q$4 -> -56124.69729 | R61: =R49/(1+'Model Inputs'!$F$9)^R$4 -> -53958.92682 | S61: =S49/(1+'Model Inputs'!$F$9)^S$4 -> -51876.73029 | T61: =T49/(1+'Model Inputs'!$F$9)^T$4 -> -49874.88269 | U61: =U49/(1+'Model Inputs'!$F$9)^U$4 -> -47950.28348 | V61: =V49/(1+'Model Inputs'!$F$9)^V$4 -> -46099.95176 | W61: =W49/(1+'Model Inputs'!$F$9)^W$4 -> -44321.02165 | X61: =X49/(1+'Model Inputs'!$F$9)^X$4 -> -42610.73786 | Y61: =Y49/(1+'Model Inputs'!$F$9)^Y$4 -> -154762.1499 | Z61: =Z49/(1+'Model Inputs'!$F$9)^Z$4 -> -39385.61564 | AA61: =AA49/(1+'Model Inputs'!$F$9)^AA$4 -> -37865.78199 | AB61: =AB49/(1+'Model Inputs'!$F$9)^AB$4 -> -36404.59652 | AC61: =AC49/(1+'Model Inputs'!$F$9)^AC$4 -> -34999.79607 | AD61: =AD49/(1+'Model Inputs'!$F$9)^AD$4 -> -33649.20483 | AE61: =AE49/(1+'Model Inputs'!$F$9)^AE$4 -> -32350.73093 | AF61: =AF49/(1+'Model Inputs'!$F$9)^AF$4 -> -31102.36326 | AG61: =AG49/(1+'Model Inputs'!$F$9)^AG$4 -> -29902.16828 | AH61: =AH49/(1+'Model Inputs'!$F$9)^AH$4 -> -28748.28709 | AI61: =AI49/(1+'Model Inputs'!$F$9)^AI$4 -> -104413.7449 | AJ61: =SUM(E61:AI61) -> -2872928.767
B62: =B37 -> Discounted revenues | C62: NZ$: | E62: =E54/(1+'Model Inputs'!$F$9)^E$4 -> 0 | F62: =F54/(1+'Model Inputs'!$F$9)^F$4 -> 159997.1484 | G62: =G54/(1+'Model Inputs'!$F$9)^G$4 -> 153823.0911 | H62: =H54/(1+'Model Inputs'!$F$9)^H$4 -> 147887.2816 | I62: =I54/(1+'Model Inputs'!$F$9)^I$4 -> 142180.5264 | J62: =J54/(1+'Model Inputs'!$F$9)^J$4 -> 136693.9866 | K62: =K54/(1+'Model Inputs'!$F$9)^K$4 -> 131419.1644 | L62: =L54/(1+'Model Inputs'!$F$9)^L$4 -> 126347.8899 | M62: =M54/(1+'Model Inputs'!$F$9)^M$4 -> 121472.3086 | N62: =N54/(1+'Model Inputs'!$F$9)^N$4 -> 116784.8688 | O62: =O54/(1+'Model Inputs'!$F$9)^O$4 -> 112278.3105 | P62: =P54/(1+'Model Inputs'!$F$9)^P$4 -> 107945.6537 | Q62: =Q54/(1+'Model Inputs'!$F$9)^Q$4 -> 103780.1879 | R62: =R54/(1+'Model Inputs'!$F$9)^R$4 -> 99775.46134 | S62: =S54/(1+'Model Inputs'!$F$9)^S$4 -> 95925.27136 | T62: =T54/(1+'Model Inputs'!$F$9)^T$4 -> 92223.6546 | U62: =U54/(1+'Model Inputs'!$F$9)^U$4 -> 88664.87785 | V62: =V54/(1+'Model Inputs'!$F$9)^V$4 -> 85243.42913 | W62: =W54/(1+'Model Inputs'!$F$9)^W$4 -> 81954.00914 | X62: =X54/(1+'Model Inputs'!$F$9)^X$4 -> 78791.52308 | Y62: =Y54/(1+'Model Inputs'!$F$9)^Y$4 -> 75751.07276 | Z62: =Z54/(1+'Model Inputs'!$F$9)^Z$4 -> 72827.94899 | AA62: =AA54/(1+'Model Inputs'!$F$9)^AA$4 -> 70017.62433 | AB62: =AB54/(1+'Model Inputs'!$F$9)^AB$4 -> 67315.746 | AC62: =AC54/(1+'Model Inputs'!$F$9)^AC$4 -> 64718.12924 | AD62: =AD54/(1+'Model Inputs'!$F$9)^AD$4 -> 62220.75072 | AE62: =AE54/(1+'Model Inputs'!$F$9)^AE$4 -> 59819.74242 | AF62: =AF54/(1+'Model Inputs'!$F$9)^AF$4 -> 57511.38553 | AG62: =AG54/(1+'Model Inputs'!$F$9)^AG$4 -> 55292.10478 | AH62: =AH54/(1+'Model Inputs'!$F$9)^AH$4 -> 53158.46285 | AI62: =AI54/(1+'Model Inputs'!$F$9)^AI$4 -> 51107.15505 | AJ62: =SUM(E62:AI62) -> 2872928.767
B64: HYBRID
B65: COSTS
B66: Construction | C66: NZ$: | D66: ='Model Inputs'!H20 -> 1455000 | E66: =-$D66*E$7 -> -1455000 | F66: =-$D66*F$7 -> 0 | G66: 0 | H66: 0 | I66: 0 | J66: 0 | K66: 0 | L66: 0 | M66: 0 | N66: 0 | O66: 0 | P66: 0 | Q66: 0 | R66: 0 | S66: 0 | T66: 0 | U66: 0 | V66: 0 | W66: 0 | X66: 0 | Y66: 0 | Z66: 0 | AA66: 0 | AB66: 0 | AC66: 0 | AD66: 0 | AE66: 0 | AF66: 0 | AG66: 0 | AH66: 0 | AI66: 0 | AJ66: =SUM(E66:AI66) -> -1455000
B67: Maintenance | C67: NZ$: | D67: ='Model Inputs'!H27 -> 90000 | F67: =-$D67*(1+$D$6)^F$4 -> -91710 | G67: =-$D67*(1+$D$6)^G$4 -> -93452.49 | H67: -95228.08731 | I67: -97037.42097 | J67: -98881.13197 | K67: -100759.8735 | L67: -102674.3111 | M67: -104625.123 | N67: -106613.0003 | O67: -108638.6473 | P67: -110702.7816 | Q67: -112806.1345 | R67: -114949.451 | S67: -117133.4906 | T67: -119359.0269 | U67: -121626.8484 | V67: -123937.7586 | W67: -126292.576 | X67: -128692.1349 | Y67: -131137.2855 | Z67: -133628.8939 | AA67: -136167.8429 | AB67: -138755.0319 | AC67: -141391.3775 | AD67: -144077.8137 | AE67: -146815.2921 | AF67: -149604.7827 | AG67: -152447.2736 | AH67: -155343.7718 | AI67: -158295.3034 | AJ67: =SUM(E67:AI67) -> -3662784.957
B68: Replacement costs
B69: ='Model Inputs'!C30 -> Renewal cost - 3 Years | C69: NZ$: | D69: ='Model Inputs'!H30 -> 87000 | F69: =-$D69*F$9*(1+$D$6)^F$4 -> 0 | G69: =-$D69*G$9*(1+$D$6)^G$4 -> 0 | H69: -92053.81773 | I69: 0 | J69: 0 | K69: -97401.21103 | L69: 0 | M69: 0 | N69: -103059.2336 | O69: 0 | P69: 0 | Q69: -109045.93 | R69: 0 | S69: 0 | T69: -115380.3927 | U69: 0 | V69: 0 | W69: -122082.8234 | X69: 0 | Y69: 0 | Z69: -129174.5974 | AA69: 0 | AB69: 0 | AC69: -136678.3316 | AD69: 0 | AE69: 0 | AF69: -144617.9566 | AG69: 0 | AH69: 0 | AI69: -153018.7933 | AJ69: =SUM(E69:AI69) -> -1202513.087
B70: ='Model Inputs'!C31 -> Renewal cost - 10 Years | C70: NZ$: | D70: ='Model Inputs'!H31 -> 0 | F70: =-$D70*F$10*(1+$D$6)^F$4 -> 0 | G70: =-$D70*G$10*(1+$D$6)^G$4 -> 0 | H70: 0 | I70: 0 | J70: 0 | K70: 0 | L70: 0 | M70: 0 | N70: 0 | O70: 0 | P70: 0 | Q70: 0 | R70: 0 | S70: 0 | T70: 0 | U70: 0 | V70: 0 | W70: 0 | X70: 0 | Y70: 0 | Z70: 0 | AA70: 0 | AB70: 0 | AC70: 0 | AD70: 0 | AE70: 0 | AF70: 0 | AG70: 0 | AH70: 0 | AI70: 0 | AJ70: 0
B71: ='Model Inputs'!C32 -> Renewal cost - 15 Years | C71: NZ$: | D71: ='Model Inputs'!H32 -> 0 | F71: =-$D71*F$11*(1+$D$6)^F$4 -> 0 | G71: =-$D71*G$11*(1+$D$6)^G$4 -> 0 | H71: 0 | I71: 0 | J71: 0 | K71: 0 | L71: 0 | M71: 0 | N71: 0 | O71: 0 | P71: 0 | Q71: 0 | R71: 0 | S71: 0 | T71: 0 | U71: 0 | V71: 0 | W71: 0 | X71: 0 | Y71: 0 | Z71: 0 | AA71: 0 | AB71: 0 | AC71: 0 | AD71: 0 | AE71: 0 | AF71: 0 | AG71: 0 | AH71: 0 | AI71: 0 | AJ71: 0
B72: ='Model Inputs'!C33 -> Renewal cost - 20 Years | C72: NZ$: | D72: ='Model Inputs'!H33 -> 1400000 | F72: =-$D72*F$12*(1+$D$6)^F$4 -> 0 | G72: =-$D72*G$12*(1+$D$6)^G$4 -> 0 | H72: 0 | I72: 0 | J72: 0 | K72: 0 | L72: 0 | M72: 0 | N72: 0 | O72: 0 | P72: 0 | Q72: 0 | R72: 0 | S72: 0 | T72: 0 | U72: 0 | V72: 0 | W72: 0 | X72: 0 | Y72: -2039913.33 | Z72: 0 | AA72: 0 | AB72: 0 | AC72: 0 | AD72: 0 | AE72: 0 | AF72: 0 | AG72: 0 | AH72: 0 | AI72: 0 | AJ72: -2039913.33
B74: Total costs | C74: NZ$: | E74: =SUM(E66:E73) -> -1455000 | F74: =SUM(F66:F73) -> -91710 | G74: -93452.49 | H74: -187281.905 | I74: -97037.42097 | J74: -98881.13197 | K74: -198161.0845 | L74: -102674.3111 | M74: -104625.123 | N74: -209672.234 | O74: -108638.6473 | P74: -110702.7816 | Q74: -221852.0645 | R74: -114949.451 | S74: -117133.4906 | T74: -234739.4196 | U74: -121626.8484 | V74: -123937.7586 | W74: -248375.3994 | X74: -128692.1349 | Y74: -2171050.615 | Z74: -262803.4913 | AA74: -136167.8429 | AB74: -138755.0319 | AC74: -278069.7091 | AD74: -144077.8137 | AE74: -146815.2921 | AF74: -294222.7393 | AG74: -152447.2736 | AH74: -155343.7718 | AI74: -311314.0967 | AJ74: -8360211.374
B76: REVENUE
B77: Game revenue | C77: NZ$: | F77: ='Model Inputs'!$H58*'Model Inputs'!$H$65*(1+$D$6)^F$4 -> 74955.70596 | G77: ='Model Inputs'!$H58*'Model Inputs'!$H$65*(1+$D$6)^G$4 -> 76379.86437 | H77: ='Model Inputs'!$H58*'Model Inputs'!$H$65*(1+$D$6)^H$4 -> 77831.08179 | I77: ='Model Inputs'!$H58*'Model Inputs'!$H$65*(1+$D$6)^I$4 -> 79309.87235 | J77: ='Model Inputs'!$H58*'Model Inputs'!$H$65*(1+$D$6)^J$4 -> 80816.75992 | K77: ='Model Inputs'!$H58*'Model Inputs'!$H$65*(1+$D$6)^K$4 -> 82352.27836 | L77: ='Model Inputs'!$H58*'Model Inputs'!$H$65*(1+$D$6)^L$4 -> 83916.97165 | M77: ='Model Inputs'!$H58*'Model Inputs'!$H$65*(1+$D$6)^M$4 -> 85511.39411 | N77: ='Model Inputs'!$H58*'Model Inputs'!$H$65*(1+$D$6)^N$4 -> 87136.1106 | O77: ='Model Inputs'!$H58*'Model Inputs'!$H$65*(1+$D$6)^O$4 -> 88791.6967 | P77: ='Model Inputs'!$H58*'Model Inputs'!$H$65*(1+$D$6)^P$4 -> 90478.73894 | Q77: ='Model Inputs'!$H58*'Model Inputs'!$H$65*(1+$D$6)^Q$4 -> 92197.83498 | R77: ='Model Inputs'!$H58*'Model Inputs'!$H$65*(1+$D$6)^R$4 -> 93949.59384 | S77: ='Model Inputs'!$H58*'Model Inputs'!$H$65*(1+$D$6)^S$4 -> 95734.63613 | T77: ='Model Inputs'!$H58*'Model Inputs'!$H$65*(1+$D$6)^T$4 -> 97553.59421 | U77: ='Model Inputs'!$H58*'Model Inputs'!$H$65*(1+$D$6)^U$4 -> 99407.1125 | V77: ='Model Inputs'!$H58*'Model Inputs'!$H$65*(1+$D$6)^V$4 -> 101295.8476 | W77: ='Model Inputs'!$H58*'Model Inputs'!$H$65*(1+$D$6)^W$4 -> 103220.4687 | X77: ='Model Inputs'!$H58*'Model Inputs'!$H$65*(1+$D$6)^X$4 -> 105181.6577 | Y77: ='Model Inputs'!$H58*'Model Inputs'!$H$65*(1+$D$6)^Y$4 -> 107180.1091 | Z77: ='Model Inputs'!$H58*'Model Inputs'!$H$65*(1+$D$6)^Z$4 -> 109216.5312 | AA77: ='Model Inputs'!$H58*'Model Inputs'!$H$65*(1+$D$6)^AA$4 -> 111291.6453 | AB77: ='Model Inputs'!$H58*'Model Inputs'!$H$65*(1+$D$6)^AB$4 -> 113406.1866 | AC77: ='Model Inputs'!$H58*'Model Inputs'!$H$65*(1+$D$6)^AC$4 -> 115560.9041 | AD77: ='Model Inputs'!$H58*'Model Inputs'!$H$65*(1+$D$6)^AD$4 -> 117756.5613 | AE77: ='Model Inputs'!$H58*'Model Inputs'!$H$65*(1+$D$6)^AE$4 -> 119993.936 | AF77: ='Model Inputs'!$H58*'Model Inputs'!$H$65*(1+$D$6)^AF$4 -> 122273.8207 | AG77: ='Model Inputs'!$H58*'Model Inputs'!$H$65*(1+$D$6)^AG$4 -> 124597.0233 | AH77: ='Model Inputs'!$H58*'Model Inputs'!$H$65*(1+$D$6)^AH$4 -> 126964.3668 | AI77: ='Model Inputs'!$H58*'Model Inputs'!$H$65*(1+$D$6)^AI$4 -> 129376.6898 | AJ77: =SUM(E77:AI77) -> 2993638.995
B78: Training revenue | C78: NZ$: | F78: ='Model Inputs'!$H59*'Model Inputs'!$H$65*(1+$D$6)^F$4 -> 168650.3384 | G78: ='Model Inputs'!$H59*'Model Inputs'!$H$65*(1+$D$6)^G$4 -> 171854.6948 | H78: ='Model Inputs'!$H59*'Model Inputs'!$H$65*(1+$D$6)^H$4 -> 175119.934 | I78: ='Model Inputs'!$H59*'Model Inputs'!$H$65*(1+$D$6)^I$4 -> 178447.2128 | J78: ='Model Inputs'!$H59*'Model Inputs'!$H$65*(1+$D$6)^J$4 -> 181837.7098 | K78: ='Model Inputs'!$H59*'Model Inputs'!$H$65*(1+$D$6)^K$4 -> 185292.6263 | L78: ='Model Inputs'!$H59*'Model Inputs'!$H$65*(1+$D$6)^L$4 -> 188813.1862 | M78: ='Model Inputs'!$H59*'Model Inputs'!$H$65*(1+$D$6)^M$4 -> 192400.6368 | N78: ='Model Inputs'!$H59*'Model Inputs'!$H$65*(1+$D$6)^N$4 -> 196056.2489 | O78: ='Model Inputs'!$H59*'Model Inputs'!$H$65*(1+$D$6)^O$4 -> 199781.3176 | P78: ='Model Inputs'!$H59*'Model Inputs'!$H$65*(1+$D$6)^P$4 -> 203577.1626 | Q78: ='Model Inputs'!$H59*'Model Inputs'!$H$65*(1+$D$6)^Q$4 -> 207445.1287 | R78: ='Model Inputs'!$H59*'Model Inputs'!$H$65*(1+$D$6)^R$4 -> 211386.5861 | S78: ='Model Inputs'!$H59*'Model Inputs'!$H$65*(1+$D$6)^S$4 -> 215402.9313 | T78: ='Model Inputs'!$H59*'Model Inputs'!$H$65*(1+$D$6)^T$4 -> 219495.587 | U78: ='Model Inputs'!$H59*'Model Inputs'!$H$65*(1+$D$6)^U$4 -> 223666.0031 | V78: ='Model Inputs'!$H59*'Model Inputs'!$H$65*(1+$D$6)^V$4 -> 227915.6572 | W78: ='Model Inputs'!$H59*'Model Inputs'!$H$65*(1+$D$6)^W$4 -> 232246.0547 | X78: ='Model Inputs'!$H59*'Model Inputs'!$H$65*(1+$D$6)^X$4 -> 236658.7297 | Y78: ='Model Inputs'!$H59*'Model Inputs'!$H$65*(1+$D$6)^Y$4 -> 241155.2456 | Z78: ='Model Inputs'!$H59*'Model Inputs'!$H$65*(1+$D$6)^Z$4 -> 245737.1952 | AA78: ='Model Inputs'!$H59*'Model Inputs'!$H$65*(1+$D$6)^AA$4 -> 250406.202 | AB78: ='Model Inputs'!$H59*'Model Inputs'!$H$65*(1+$D$6)^AB$4 -> 255163.9198 | AC78: ='Model Inputs'!$H59*'Model Inputs'!$H$65*(1+$D$6)^AC$4 -> 260012.0343 | AD78: ='Model Inputs'!$H59*'Model Inputs'!$H$65*(1+$D$6)^AD$4 -> 264952.2629 | AE78: ='Model Inputs'!$H59*'Model Inputs'!$H$65*(1+$D$6)^AE$4 -> 269986.3559 | AF78: ='Model Inputs'!$H59*'Model Inputs'!$H$65*(1+$D$6)^AF$4 -> 275116.0967 | AG78: ='Model Inputs'!$H59*'Model Inputs'!$H$65*(1+$D$6)^AG$4 -> 280343.3025 | AH78: ='Model Inputs'!$H59*'Model Inputs'!$H$65*(1+$D$6)^AH$4 -> 285669.8253 | AI78: ='Model Inputs'!$H59*'Model Inputs'!$H$65*(1+$D$6)^AI$4 -> 291097.5519 | AJ78: 6735687.738
B79: Total revenue | C79: NZ$: | E79: =SUM(E77:E78) -> 0 | F79: =SUM(F77:F78) -> 243606.0444 | G79: 248234.5592 | H79: 252951.0158 | I79: 257757.0851 | J79: 262654.4698 | K79: 267644.9047 | L79: 272730.1579 | M79: 277912.0309 | N79: 283192.3595 | O79: 288573.0143 | P79: 294055.9016 | Q79: 299642.9637 | R79: 305336.18 | S79: 311137.5674 | T79: 317049.1812 | U79: 323073.1156 | V79: 329211.5048 | W79: 335466.5234 | X79: 341840.3874 | Y79: 348335.3547 | Z79: 354953.7265 | AA79: 361697.8473 | AB79: 368570.1064 | AC79: 375572.9384 | AD79: 382708.8242 | AE79: 389980.2919 | AF79: 397389.9174 | AG79: 404940.3259 | AH79: 412634.192 | AI79: 420474.2417 | AJ79: =SUM(E79:AI79) -> 9729326.733
B81: Net Cash flow | C81: NZ$: | E81: =E79+E74 -> -1455000 | F81: =F79+F74 -> 151896.0444 | G81: =G79+G74 -> 154782.0692 | H81: =H79+H74 -> 65669.11079 | I81: 160719.6642 | J81: 163773.3378 | K81: 69483.82018 | L81: 170055.8468 | M81: 173286.9079 | N81: 73520.12549 | O81: 179934.367 | P81: 183353.1199 | Q81: 77790.89922 | R81: 190386.729 | S81: 194004.0768 | T81: 82309.76158 | U81: 201446.2672 | V81: 205273.7463 | W81: 87091.12403 | X81: 213148.2525 | Y81: -1822715.26 | Z81: 92150.23514 | AA81: 225530.0044 | AB81: 229815.0745 | AC81: 97503.22931 | AD81: 238631.0105 | AE81: 243164.9997 | AF81: 103167.1782 | AG81: 252493.0523 | AH81: 257290.4203 | AI81: 109160.145 | AJ81: =SUM(E81:AI81) -> 1369115.359
B82: Cumulative Cash Flow | C82: NZ$: | E82: =E81 -> -1455000 | F82: =E82+F81 -> -1303103.956 | G82: =F82+G81 -> -1148321.886 | H82: =G82+H81 -> -1082652.776 | I82: =H82+I81 -> -921933.1115 | J82: =I82+J81 -> -758159.7737 | K82: =J82+K81 -> -688675.9535 | L82: =K82+L81 -> -518620.1067 | M82: =L82+M81 -> -345333.1988 | N82: =M82+N81 -> -271813.0733 | O82: =N82+O81 -> -91878.70639 | P82: =O82+P81 -> 91474.41354 | Q82: =P82+Q81 -> 169265.3128 | R82: =Q82+R81 -> 359652.0417 | S82: =R82+S81 -> 553656.1185 | T82: =S82+T81 -> 635965.8801 | U82: =T82+U81 -> 837412.1473 | V82: =U82+V81 -> 1042685.894 | W82: =V82+W81 -> 1129777.018 | X82: =W82+X81 -> 1342925.27 | Y82: =X82+Y81 -> -479789.9902 | Z82: =Y82+Z81 -> -387639.7551 | AA82: =Z82+AA81 -> -162109.7507 | AB82: =AA82+AB81 -> 67705.32381 | AC82: =AB82+AC81 -> 165208.5531 | AD82: =AC82+AD81 -> 403839.5637 | AE82: =AD82+AE81 -> 647004.5634 | AF82: =AE82+AF81 -> 750171.7416 | AG82: =AF82+AG81 -> 1002664.794 | AH82: =AG82+AH81 -> 1259955.214 | AI82: =AH82+AI81 -> 1369115.359
B83: Discounted cashflow | C83: NZ$: | E83: =E81/(1+'Model Inputs'!$F$9)^E4 -> -1455000 | F83: =F81/(1+'Model Inputs'!$F$9)^F4 -> 143311.675 | G83: =G81/(1+'Model Inputs'!$F$9)^G4 -> 137781.4859 | H83: =H81/(1+'Model Inputs'!$F$9)^H4 -> 55152.65949 | I83: =I81/(1+'Model Inputs'!$F$9)^I4 -> 127353.0785 | J83: =J81/(1+'Model Inputs'!$F$9)^J4 -> 122438.7084 | K83: =K81/(1+'Model Inputs'!$F$9)^K4 -> 49011.08701 | L83: =L81/(1+'Model Inputs'!$F$9)^L4 -> 113171.5654 | M83: =M81/(1+'Model Inputs'!$F$9)^M4 -> 108804.4392 | N83: =N81/(1+'Model Inputs'!$F$9)^N4 -> 43553.41468 | O83: =O81/(1+'Model Inputs'!$F$9)^O4 -> 100569.2471 | P83: =P81/(1+'Model Inputs'!$F$9)^P4 -> 96688.42605 | Q83: =Q81/(1+'Model Inputs'!$F$9)^Q4 -> 38703.48622 | R83: =R81/(1+'Model Inputs'!$F$9)^R4 -> 89370.27088 | S83: =S81/(1+'Model Inputs'!$F$9)^S4 -> 85921.60207 | T83: =T81/(1+'Model Inputs'!$F$9)^T4 -> 34393.62576 | U83: =U81/(1+'Model Inputs'!$F$9)^U4 -> 79418.36645 | V83: =V81/(1+'Model Inputs'!$F$9)^V4 -> 76353.72716 | W83: =W81/(1+'Model Inputs'!$F$9)^W4 -> 30563.69358 | X83: =X81/(1+'Model Inputs'!$F$9)^X4 -> 70574.66501 | Y83: =Y81/(1+'Model Inputs'!$F$9)^Y4 -> -569404.6199 | Z83: =Z81/(1+'Model Inputs'!$F$9)^Z4 -> 27160.24683 | AA83: =AA81/(1+'Model Inputs'!$F$9)^AA4 -> 62715.76166 | AB83: =AB81/(1+'Model Inputs'!$F$9)^AB4 -> 60295.6516 | AC83: =AC81/(1+'Model Inputs'!$F$9)^AC4 -> 24135.79387 | AD83: =AD81/(1+'Model Inputs'!$F$9)^AD4 -> 55731.99334 | AE83: =AE81/(1+'Model Inputs'!$F$9)^AE4 -> 53581.37674 | AF83: =AF81/(1+'Model Inputs'!$F$9)^AF4 -> 21448.1315 | AG83: =AG81/(1+'Model Inputs'!$F$9)^AG4 -> 49525.90863 | AH83: =AH81/(1+'Model Inputs'!$F$9)^AH4 -> 47614.77582 | AI83: =AI81/(1+'Model Inputs'!$F$9)^AI4 -> 19059.75611 | AJ83: =SUM(E83:AI83) -> 9.895302355e-10
B85: Net Present Value | C85: NZ$: | E85: =AJ83 -> 9.895302355e-10 | AJ85: 9.895302355e-10
B86: =B36 -> Discounted costs | C86: NZ$: | E86: =E74/(1+'Model Inputs'!$F$9)^E$4 -> -1455000 | F86: =F74/(1+'Model Inputs'!$F$9)^F$4 -> -86527.03085 | G86: =G74/(1+'Model Inputs'!$F$9)^G$4 -> -83188.07853 | H86: =H74/(1+'Model Inputs'!$F$9)^H$4 -> -157290.0107 | I86: =I74/(1+'Model Inputs'!$F$9)^I$4 -> -76891.73789 | J86: =J74/(1+'Model Inputs'!$F$9)^J$4 -> -73924.59752 | K86: =K74/(1+'Model Inputs'!$F$9)^K$4 -> -139774.8444 | L86: =L74/(1+'Model Inputs'!$F$9)^L$4 -> -68329.39138 | M86: =M74/(1+'Model Inputs'!$F$9)^M$4 -> -65692.65951 | N86: =N74/(1+'Model Inputs'!$F$9)^N$4 -> -124210.0947 | O86: =O74/(1+'Model Inputs'!$F$9)^O$4 -> -60720.51243 | P86: =P74/(1+'Model Inputs'!$F$9)^P$4 -> -58377.39613 | Q86: =Q74/(1+'Model Inputs'!$F$9)^Q$4 -> -110378.5713 | R86: =R74/(1+'Model Inputs'!$F$9)^R$4 -> -53958.92682 | S86: =S74/(1+'Model Inputs'!$F$9)^S$4 -> -51876.73029 | T86: =T74/(1+'Model Inputs'!$F$9)^T$4 -> -98087.26929 | U86: =U74/(1+'Model Inputs'!$F$9)^U$4 -> -47950.28348 | V86: =V74/(1+'Model Inputs'!$F$9)^V$4 -> -46099.95176 | W86: =W74/(1+'Model Inputs'!$F$9)^W$4 -> -87164.6759 | X86: =X74/(1+'Model Inputs'!$F$9)^X$4 -> -42610.73786 | Y86: =Y74/(1+'Model Inputs'!$F$9)^Y$4 -> -678222.3627 | Z86: =Z74/(1+'Model Inputs'!$F$9)^Z$4 -> -77458.37742 | AA86: =AA74/(1+'Model Inputs'!$F$9)^AA$4 -> -37865.78199 | AB86: =AB74/(1+'Model Inputs'!$F$9)^AB$4 -> -36404.59652 | AC86: =AC74/(1+'Model Inputs'!$F$9)^AC$4 -> -68832.93227 | AD86: =AD74/(1+'Model Inputs'!$F$9)^AD$4 -> -33649.20483 | AE86: =AE74/(1+'Model Inputs'!$F$9)^AE$4 -> -32350.73093 | AF86: =AF74/(1+'Model Inputs'!$F$9)^AF$4 -> -61167.98108 | AG86: =AG74/(1+'Model Inputs'!$F$9)^AG$4 -> -29902.16828 | AH86: =AH74/(1+'Model Inputs'!$F$9)^AH$4 -> -28748.28709 | AI86: =AI74/(1+'Model Inputs'!$F$9)^AI$4 -> -54356.56722 | AJ86: =SUM(E86:AI86) -> -4127012.491
B87: =B37 -> Discounted revenues | C87: NZ$: | E87: =E79/(1+'Model Inputs'!$F$9)^E$4 -> 0 | F87: =F79/(1+'Model Inputs'!$F$9)^F$4 -> 229838.7059 | G87: =G79/(1+'Model Inputs'!$F$9)^G$4 -> 220969.5644 | H87: =H79/(1+'Model Inputs'!$F$9)^H$4 -> 212442.6702 | I87: =I79/(1+'Model Inputs'!$F$9)^I$4 -> 204244.8164 | J87: =J79/(1+'Model Inputs'!$F$9)^J$4 -> 196363.3059 | K87: =K79/(1+'Model Inputs'!$F$9)^K$4 -> 188785.9314 | L87: =L79/(1+'Model Inputs'!$F$9)^L$4 -> 181500.9568 | M87: =M79/(1+'Model Inputs'!$F$9)^M$4 -> 174497.0988 | N87: =N79/(1+'Model Inputs'!$F$9)^N$4 -> 167763.5094 | O87: =O79/(1+'Model Inputs'!$F$9)^O$4 -> 161289.7595 | P87: =P79/(1+'Model Inputs'!$F$9)^P$4 -> 155065.8222 | Q87: =Q79/(1+'Model Inputs'!$F$9)^Q$4 -> 149082.0576 | R87: =R79/(1+'Model Inputs'!$F$9)^R$4 -> 143329.1977 | S87: =S79/(1+'Model Inputs'!$F$9)^S$4 -> 137798.3324 | T87: =T79/(1+'Model Inputs'!$F$9)^T$4 -> 132480.8951 | U87: =U79/(1+'Model Inputs'!$F$9)^U$4 -> 127368.6499 | V87: =V79/(1+'Model Inputs'!$F$9)^V$4 -> 122453.6789 | W87: =W79/(1+'Model Inputs'!$F$9)^W$4 -> 117728.3695 | X87: =X79/(1+'Model Inputs'!$F$9)^X$4 -> 113185.4029 | Y87: =Y79/(1+'Model Inputs'!$F$9)^Y$4 -> 108817.7427 | Z87: =Z79/(1+'Model Inputs'!$F$9)^Z$4 -> 104618.6243 | AA87: =AA79/(1+'Model Inputs'!$F$9)^AA$4 -> 100581.5437 | AB87: =AB79/(1+'Model Inputs'!$F$9)^AB$4 -> 96700.24812 | AC87: =AC79/(1+'Model Inputs'!$F$9)^AC$4 -> 92968.72614 | AD87: =AD79/(1+'Model Inputs'!$F$9)^AD$4 -> 89381.19816 | AE87: =AE79/(1+'Model Inputs'!$F$9)^AE$4 -> 85932.10768 | AF87: =AF79/(1+'Model Inputs'!$F$9)^AF$4 -> 82616.11258 | AG87: =AG79/(1+'Model Inputs'!$F$9)^AG$4 -> 79428.07691 | AH87: =AH79/(1+'Model Inputs'!$F$9)^AH$4 -> 76363.06291 | AI87: =AI79/(1+'Model Inputs'!$F$9)^AI$4 -> 73416.32333 | AJ87: =SUM(E87:AI87) -> 4127012.491
B89: ARTIFICIAL
B90: COSTS
B91: Construction | C91: NZ$: | D91: ='Model Inputs'!I20 -> 3674000 | E91: =-$D91*E$7 -> -3674000 | F91: =-$D91*F$7 -> 0 | G91: 0 | H91: 0 | I91: 0 | J91: 0 | K91: 0 | L91: 0 | M91: 0 | N91: 0 | O91: 0 | P91: 0 | Q91: 0 | R91: 0 | S91: 0 | T91: 0 | U91: 0 | V91: 0 | W91: 0 | X91: 0 | Y91: 0 | Z91: 0 | AA91: 0 | AB91: 0 | AC91: 0 | AD91: 0 | AE91: 0 | AF91: 0 | AG91: 0 | AH91: 0 | AI91: 0 | AJ91: =SUM(E91:AI91) -> -3674000
B92: Maintenance | C92: NZ$: | D92: ='Model Inputs'!I27 -> 49000 | F92: =-$D92*(1+$D$6)^F$4 -> -49931 | G92: =-$D92*(1+$D$6)^G$4 -> -50879.689 | H92: -51846.40309 | I92: -52831.48475 | J92: -53835.28296 | K92: -54858.15334 | L92: -55900.45825 | M92: -56962.56696 | N92: -58044.85573 | O92: -59147.70799 | P92: -60271.51444 | Q92: -61416.67321 | R92: -62583.59 | S92: -63772.67821 | T92: -64984.3591 | U92: -66219.06192 | V92: -67477.2241 | W92: -68759.29136 | X92: -70065.71789 | Y92: -71396.96653 | Z92: -72753.5089 | AA92: -74135.82557 | AB92: -75544.40625 | AC92: -76979.74997 | AD92: -78442.36522 | AE92: -79932.77016 | AF92: -81451.49279 | AG92: -82999.07116 | AH92: -84576.05351 | AI92: -86182.99853 | AJ92: =SUM(E92:AI92) -> -1994182.921
B93: Replacement costs
B94: ='Model Inputs'!C30 -> Renewal cost - 3 Years | C94: NZ$: | D94: ='Model Inputs'!I30 -> 0 | F94: =-$D94*F$9*(1+$D$6)^F$4 -> 0 | G94: =-$D94*G$9*(1+$D$6)^G$4 -> 0 | H94: 0 | I94: 0 | J94: 0 | K94: 0 | L94: 0 | M94: 0 | N94: 0 | O94: 0 | P94: 0 | Q94: 0 | R94: 0 | S94: 0 | T94: 0 | U94: 0 | V94: 0 | W94: 0 | X94: 0 | Y94: 0 | Z94: 0 | AA94: 0 | AB94: 0 | AC94: 0 | AD94: 0 | AE94: 0 | AF94: 0 | AG94: 0 | AH94: 0 | AI94: 0 | AJ94: =SUM(E94:AI94) -> 0
B95: ='Model Inputs'!C31 -> Renewal cost - 10 Years | C95: NZ$: | D95: ='Model Inputs'!I31 -> 1000000 | F95: =-$D95*F$10*(1+$D$6)^F$4 -> 0 | G95: =-$D95*G$10*(1+$D$6)^G$4 -> 0 | H95: 0 | I95: 0 | J95: 0 | K95: 0 | L95: 0 | M95: 0 | N95: 0 | O95: -1207096.081 | P95: 0 | Q95: 0 | R95: 0 | S95: 0 | T95: 0 | U95: 0 | V95: 0 | W95: 0 | X95: 0 | Y95: -1457080.95 | Z95: 0 | AA95: 0 | AB95: 0 | AC95: 0 | AD95: 0 | AE95: 0 | AF95: 0 | AG95: 0 | AH95: 0 | AI95: -1758836.705 | AJ95: -4423013.736
B96: ='Model Inputs'!C32 -> Renewal cost - 15 Years | C96: NZ$: | D96: ='Model Inputs'!I32 -> 0 | F96: =-$D96*F$11*(1+$D$6)^F$4 -> 0 | G96: =-$D96*G$11*(1+$D$6)^G$4 -> 0 | H96: 0 | I96: 0 | J96: 0 | K96: 0 | L96: 0 | M96: 0 | N96: 0 | O96: 0 | P96: 0 | Q96: 0 | R96: 0 | S96: 0 | T96: 0 | U96: 0 | V96: 0 | W96: 0 | X96: 0 | Y96: 0 | Z96: 0 | AA96: 0 | AB96: 0 | AC96: 0 | AD96: 0 | AE96: 0 | AF96: 0 | AG96: 0 | AH96: 0 | AI96: 0 | AJ96: 0
B97: ='Model Inputs'!C33 -> Renewal cost - 20 Years | C97: NZ$: | D97: ='Model Inputs'!I33 -> 250000 | F97: =-$D97*F$12*(1+$D$6)^F$4 -> 0 | G97: =-$D97*G$12*(1+$D$6)^G$4 -> 0 | H97: 0 | I97: 0 | J97: 0 | K97: 0 | L97: 0 | M97: 0 | N97: 0 | O97: 0 | P97: 0 | Q97: 0 | R97: 0 | S97: 0 | T97: 0 | U97: 0 | V97: 0 | W97: 0 | X97: 0 | Y97: -364270.2374 | Z97: 0 | AA97: 0 | AB97: 0 | AC97: 0 | AD97: 0 | AE97: 0 | AF97: 0 | AG97: 0 | AH97: 0 | AI97: 0 | AJ97: -364270.2374
B99: Total costs | C99: NZ$: | E99: =SUM(E91:E98) -> -3674000 | F99: =SUM(F91:F98) -> -49931 | G99: -50879.689 | H99: -51846.40309 | I99: -52831.48475 | J99: -53835.28296 | K99: -54858.15334 | L99: -55900.45825 | M99: -56962.56696 | N99: -58044.85573 | O99: -1266243.789 | P99: -60271.51444 | Q99: -61416.67321 | R99: -62583.59 | S99: -63772.67821 | T99: -64984.3591 | U99: -66219.06192 | V99: -67477.2241 | W99: -68759.29136 | X99: -70065.71789 | Y99: -1892748.154 | Z99: -72753.5089 | AA99: -74135.82557 | AB99: -75544.40625 | AC99: -76979.74997 | AD99: -78442.36522 | AE99: -79932.77016 | AF99: -81451.49279 | AG99: -82999.07116 | AH99: -84576.05351 | AI99: -1845019.703 | AJ99: -10455466.89
B101: REVENUE
B102: Game revenue | C102: NZ$: | F102: ='Model Inputs'!$I58*'Model Inputs'!$I$65*(1+$D$6)^F$4 -> 127407.4439 | G102: ='Model Inputs'!$I58*'Model Inputs'!$I$65*(1+$D$6)^G$4 -> 129828.1853 | H102: ='Model Inputs'!$I58*'Model Inputs'!$I$65*(1+$D$6)^H$4 -> 132294.9208 | I102: ='Model Inputs'!$I58*'Model Inputs'!$I$65*(1+$D$6)^I$4 -> 134808.5243 | J102: ='Model Inputs'!$I58*'Model Inputs'!$I$65*(1+$D$6)^J$4 -> 137369.8863 | K102: ='Model Inputs'!$I58*'Model Inputs'!$I$65*(1+$D$6)^K$4 -> 139979.9141 | L102: ='Model Inputs'!$I58*'Model Inputs'!$I$65*(1+$D$6)^L$4 -> 142639.5325 | M102: ='Model Inputs'!$I58*'Model Inputs'!$I$65*(1+$D$6)^M$4 -> 145349.6836 | N102: ='Model Inputs'!$I58*'Model Inputs'!$I$65*(1+$D$6)^N$4 -> 148111.3276 | O102: ='Model Inputs'!$I58*'Model Inputs'!$I$65*(1+$D$6)^O$4 -> 150925.4428 | P102: ='Model Inputs'!$I58*'Model Inputs'!$I$65*(1+$D$6)^P$4 -> 153793.0262 | Q102: ='Model Inputs'!$I58*'Model Inputs'!$I$65*(1+$D$6)^Q$4 -> 156715.0937 | R102: ='Model Inputs'!$I58*'Model Inputs'!$I$65*(1+$D$6)^R$4 -> 159692.6805 | S102: ='Model Inputs'!$I58*'Model Inputs'!$I$65*(1+$D$6)^S$4 -> 162726.8414 | T102: ='Model Inputs'!$I58*'Model Inputs'!$I$65*(1+$D$6)^T$4 -> 165818.6514 | U102: ='Model Inputs'!$I58*'Model Inputs'!$I$65*(1+$D$6)^U$4 -> 168969.2058 | V102: ='Model Inputs'!$I58*'Model Inputs'!$I$65*(1+$D$6)^V$4 -> 172179.6207 | W102: ='Model Inputs'!$I58*'Model Inputs'!$I$65*(1+$D$6)^W$4 -> 175451.0335 | X102: ='Model Inputs'!$I58*'Model Inputs'!$I$65*(1+$D$6)^X$4 -> 178784.6032 | Y102: ='Model Inputs'!$I58*'Model Inputs'!$I$65*(1+$D$6)^Y$4 -> 182181.5106 | Z102: ='Model Inputs'!$I58*'Model Inputs'!$I$65*(1+$D$6)^Z$4 -> 185642.9593 | AA102: ='Model Inputs'!$I58*'Model Inputs'!$I$65*(1+$D$6)^AA$4 -> 189170.1755 | AB102: ='Model Inputs'!$I58*'Model Inputs'!$I$65*(1+$D$6)^AB$4 -> 192764.4089 | AC102: ='Model Inputs'!$I58*'Model Inputs'!$I$65*(1+$D$6)^AC$4 -> 196426.9326 | AD102: ='Model Inputs'!$I58*'Model Inputs'!$I$65*(1+$D$6)^AD$4 -> 200159.0444 | AE102: ='Model Inputs'!$I58*'Model Inputs'!$I$65*(1+$D$6)^AE$4 -> 203962.0662 | AF102: ='Model Inputs'!$I58*'Model Inputs'!$I$65*(1+$D$6)^AF$4 -> 207837.3455 | AG102: ='Model Inputs'!$I58*'Model Inputs'!$I$65*(1+$D$6)^AG$4 -> 211786.255 | AH102: ='Model Inputs'!$I58*'Model Inputs'!$I$65*(1+$D$6)^AH$4 -> 215810.1939 | AI102: ='Model Inputs'!$I58*'Model Inputs'!$I$65*(1+$D$6)^AI$4 -> 219910.5876 | AJ102: =SUM(E102:AI102) -> 5088497.097
B103: Training revenue | C103: NZ$: | F103: ='Model Inputs'!$I59*'Model Inputs'!$I$65*(1+$D$6)^F$4 -> 230925.992 | G103: ='Model Inputs'!$I59*'Model Inputs'!$I$65*(1+$D$6)^G$4 -> 235313.5859 | H103: ='Model Inputs'!$I59*'Model Inputs'!$I$65*(1+$D$6)^H$4 -> 239784.544 | I103: ='Model Inputs'!$I59*'Model Inputs'!$I$65*(1+$D$6)^I$4 -> 244340.4503 | J103: ='Model Inputs'!$I59*'Model Inputs'!$I$65*(1+$D$6)^J$4 -> 248982.9189 | K103: ='Model Inputs'!$I59*'Model Inputs'!$I$65*(1+$D$6)^K$4 -> 253713.5943 | L103: ='Model Inputs'!$I59*'Model Inputs'!$I$65*(1+$D$6)^L$4 -> 258534.1526 | M103: ='Model Inputs'!$I59*'Model Inputs'!$I$65*(1+$D$6)^M$4 -> 263446.3015 | N103: ='Model Inputs'!$I59*'Model Inputs'!$I$65*(1+$D$6)^N$4 -> 268451.7813 | O103: ='Model Inputs'!$I59*'Model Inputs'!$I$65*(1+$D$6)^O$4 -> 273552.3651 | P103: ='Model Inputs'!$I59*'Model Inputs'!$I$65*(1+$D$6)^P$4 -> 278749.8601 | Q103: ='Model Inputs'!$I59*'Model Inputs'!$I$65*(1+$D$6)^Q$4 -> 284046.1074 | R103: ='Model Inputs'!$I59*'Model Inputs'!$I$65*(1+$D$6)^R$4 -> 289442.9834 | S103: ='Model Inputs'!$I59*'Model Inputs'!$I$65*(1+$D$6)^S$4 -> 294942.4001 | T103: ='Model Inputs'!$I59*'Model Inputs'!$I$65*(1+$D$6)^T$4 -> 300546.3057 | U103: ='Model Inputs'!$I59*'Model Inputs'!$I$65*(1+$D$6)^U$4 -> 306256.6855 | V103: ='Model Inputs'!$I59*'Model Inputs'!$I$65*(1+$D$6)^V$4 -> 312075.5626 | W103: ='Model Inputs'!$I59*'Model Inputs'!$I$65*(1+$D$6)^W$4 -> 318004.9982 | X103: ='Model Inputs'!$I59*'Model Inputs'!$I$65*(1+$D$6)^X$4 -> 324047.0932 | Y103: ='Model Inputs'!$I59*'Model Inputs'!$I$65*(1+$D$6)^Y$4 -> 330203.988 | Z103: ='Model Inputs'!$I59*'Model Inputs'!$I$65*(1+$D$6)^Z$4 -> 336477.8638 | AA103: ='Model Inputs'!$I59*'Model Inputs'!$I$65*(1+$D$6)^AA$4 -> 342870.9432 | AB103: ='Model Inputs'!$I59*'Model Inputs'!$I$65*(1+$D$6)^AB$4 -> 349385.4911 | AC103: ='Model Inputs'!$I59*'Model Inputs'!$I$65*(1+$D$6)^AC$4 -> 356023.8154 | AD103: ='Model Inputs'!$I59*'Model Inputs'!$I$65*(1+$D$6)^AD$4 -> 362788.2679 | AE103: ='Model Inputs'!$I59*'Model Inputs'!$I$65*(1+$D$6)^AE$4 -> 369681.245 | AF103: ='Model Inputs'!$I59*'Model Inputs'!$I$65*(1+$D$6)^AF$4 -> 376705.1887 | AG103: ='Model Inputs'!$I59*'Model Inputs'!$I$65*(1+$D$6)^AG$4 -> 383862.5872 | AH103: ='Model Inputs'!$I59*'Model Inputs'!$I$65*(1+$D$6)^AH$4 -> 391155.9764 | AI103: ='Model Inputs'!$I59*'Model Inputs'!$I$65*(1+$D$6)^AI$4 -> 398587.9399 | AJ103: 9222900.989
B104: Total revenue | C104: NZ$: | E104: =SUM(E102:E103) -> 0 | F104: =SUM(F102:F103) -> 358333.4359 | G104: =SUM(G102:G103) -> 365141.7712 | H104: 372079.4648 | I104: 379148.9747 | J104: 386352.8052 | K104: 393693.5085 | L104: 401173.6851 | M104: 408795.9852 | N104: 416563.1089 | O104: 424477.8079 | P104: 432542.8863 | Q104: 440761.2011 | R104: 449135.6639 | S104: 457669.2416 | T104: 466364.9572 | U104: 475225.8913 | V104: 484255.1833 | W104: 493456.0318 | X104: 502831.6964 | Y104: 512385.4986 | Z104: 522120.8231 | AA104: 532041.1187 | AB104: 542149.9 | AC104: 552450.7481 | AD104: 562947.3123 | AE104: 573643.3112 | AF104: 584542.5341 | AG104: 595648.8423 | AH104: 606966.1703 | AI104: 618498.5275 | AJ104: =SUM(E104:AI104) -> 14311398.09
B106: Net Cash flow | C106: NZ$: | E106: =E104+E99 -> -3674000 | F106: =F104+F99 -> 308402.4359 | G106: =G104+G99 -> 314262.0822 | H106: =H104+H99 -> 320233.0617 | I106: 326317.4899 | J106: 332517.5222 | K106: 338835.3551 | L106: 345273.2269 | M106: 351833.4182 | N106: 358518.2531 | O106: -841765.9814 | P106: 372271.3718 | Q106: 379344.5279 | R106: 386552.0739 | S106: 393896.5633 | T106: 401380.5981 | U106: 409006.8294 | V106: 416777.9592 | W106: 424696.7404 | X106: 432765.9785 | Y106: -1380362.655 | Z106: 449367.3142 | AA106: 457905.2931 | AB106: 466605.4937 | AC106: 475470.9981 | AD106: 484504.947 | AE106: 493710.541 | AF106: 503091.0413 | AG106: 512649.7711 | AH106: 522390.1168 | AI106: -1226521.176 | AJ106: =SUM(E106:AI106) -> 3855931.192
B107: Cumulative Cash Flow | C107: NZ$: | E107: =E106 -> -3674000 | F107: =E107+F106 -> -3365597.564 | G107: =F107+G106 -> -3051335.482 | H107: =G107+H106 -> -2731102.42 | I107: =H107+I106 -> -2404784.93 | J107: =I107+J106 -> -2072267.408 | K107: =J107+K106 -> -1733432.053 | L107: =K107+L106 -> -1388158.826 | M107: =L107+M106 -> -1036325.408 | N107: =M107+N106 -> -677807.1547 | O107: =N107+O106 -> -1519573.136 | P107: =O107+P106 -> -1147301.764 | Q107: =P107+Q106 -> -767957.2364 | R107: =Q107+R106 -> -381405.1625 | S107: =R107+S106 -> 12491.4009 | T107: =S107+T106 -> 413871.999 | U107: =T107+U106 -> 822878.8284 | V107: =U107+V106 -> 1239656.788 | W107: =V107+W106 -> 1664353.528 | X107: =W107+X106 -> 2097119.506 | Y107: =X107+Y106 -> 716756.8514 | Z107: =Y107+Z106 -> 1166124.166 | AA107: =Z107+AA106 -> 1624029.459 | AB107: =AA107+AB106 -> 2090634.952 | AC107: =AB107+AC106 -> 2566105.95 | AD107: =AC107+AD106 -> 3050610.898 | AE107: =AD107+AE106 -> 3544321.439 | AF107: =AE107+AF106 -> 4047412.48 | AG107: =AF107+AG106 -> 4560062.251 | AH107: =AG107+AH106 -> 5082452.368 | AI107: =AH107+AI106 -> 3855931.192
B108: Discounted cashflow | C108: NZ$: | E108: =E106/(1+'Model Inputs'!$F$9)^E29 -> -3674000 | F108: =F106/(1+'Model Inputs'!$F$9)^F4 -> 290973.1445 | G108: =G106/(1+'Model Inputs'!$F$9)^G4 -> 279744.9139 | H108: =H106/(1+'Model Inputs'!$F$9)^H4 -> 268949.9644 | I108: =I106/(1+'Model Inputs'!$F$9)^I4 -> 258571.5763 | J108: =J106/(1+'Model Inputs'!$F$9)^J4 -> 248593.6751 | K108: =K106/(1+'Model Inputs'!$F$9)^K4 -> 239000.8066 | L108: =L106/(1+'Model Inputs'!$F$9)^L4 -> 229778.113 | M108: =M106/(1+'Model Inputs'!$F$9)^M4 -> 220911.3097 | N108: =N106/(1+'Model Inputs'!$F$9)^N4 -> 212386.6634 | O108: =O106/(1+'Model Inputs'!$F$9)^O4 -> -470481.3894 | P108: =P106/(1+'Model Inputs'!$F$9)^P4 -> 196311.5382 | Q108: =Q106/(1+'Model Inputs'!$F$9)^Q4 -> 188736.1614 | R108: =R106/(1+'Model Inputs'!$F$9)^R4 -> 181453.1073 | S108: =S106/(1+'Model Inputs'!$F$9)^S4 -> 174451.0957 | T108: =T106/(1+'Model Inputs'!$F$9)^T4 -> 167719.2816 | U108: =U106/(1+'Model Inputs'!$F$9)^U4 -> 161247.2383 | V108: =V106/(1+'Model Inputs'!$F$9)^V4 -> 155024.9418 | W108: =W106/(1+'Model Inputs'!$F$9)^W4 -> 149042.7547 | X108: =X106/(1+'Model Inputs'!$F$9)^X4 -> 143291.4115 | Y108: =Y106/(1+'Model Inputs'!$F$9)^Y4 -> -431216.4879 | Z108: =Z106/(1+'Model Inputs'!$F$9)^Z4 -> 132445.9688 | AA108: =AA106/(1+'Model Inputs'!$F$9)^AA4 -> 127335.0715 | AB108: =AB106/(1+'Model Inputs'!$F$9)^AB4 -> 122421.3962 | AC108: =AC106/(1+'Model Inputs'!$F$9)^AC4 -> 117697.3325 | AD108: =AD106/(1+'Model Inputs'!$F$9)^AD4 -> 113155.5636 | AE108: =AE106/(1+'Model Inputs'!$F$9)^AE4 -> 108789.0549 | AF108: =AF106/(1+'Model Inputs'!$F$9)^AF4 -> 104591.0434 | AG108: =AG106/(1+'Model Inputs'!$F$9)^AG4 -> 100555.0271 | AH108: =AH106/(1+'Model Inputs'!$F$9)^AH4 -> 96674.75482 | AI108: =AI106/(1+'Model Inputs'!$F$9)^AI4 -> -214155.0332 | AJ108: =SUM(E108:AI108) -> 6.98491931e-10
B110: Net Present Value | C110: NZ$: | E110: =AJ108 -> 6.98491931e-10 | AJ110: =SUM(E110:AI110) -> 6.98491931e-10
B111: =B61 -> Discounted costs | C111: NZ$: | E111: =E99/(1+'Model Inputs'!$F$9)^E$4 -> -3674000 | F111: =F99/(1+'Model Inputs'!$F$9)^F$4 -> -47109.16124 | G111: =G99/(1+'Model Inputs'!$F$9)^G$4 -> -45291.2872 | H111: =H99/(1+'Model Inputs'!$F$9)^H$4 -> -43543.56228 | I111: =I99/(1+'Model Inputs'!$F$9)^I$4 -> -41863.27952 | J111: =J99/(1+'Model Inputs'!$F$9)^J$4 -> -40247.83643 | K111: =K99/(1+'Model Inputs'!$F$9)^K$4 -> -38694.73094 | L111: =L99/(1+'Model Inputs'!$F$9)^L$4 -> -37201.55753 | M111: =M99/(1+'Model Inputs'!$F$9)^M$4 -> -35766.00351 | N111: =N99/(1+'Model Inputs'!$F$9)^N$4 -> -34385.84544 | O111: =O99/(1+'Model Inputs'!$F$9)^O$4 -> -707731.306 | P111: =P99/(1+'Model Inputs'!$F$9)^P$4 -> -31783.24901 | Q111: =Q99/(1+'Model Inputs'!$F$9)^Q$4 -> -30556.77964 | R111: =R99/(1+'Model Inputs'!$F$9)^R$4 -> -29377.63794 | S111: =S99/(1+'Model Inputs'!$F$9)^S$4 -> -28243.9976 | T111: =T99/(1+'Model Inputs'!$F$9)^T$4 -> -27154.1028 | U111: =U99/(1+'Model Inputs'!$F$9)^U$4 -> -26106.26545 | V111: =V99/(1+'Model Inputs'!$F$9)^V$4 -> -25098.86262 | W111: =W99/(1+'Model Inputs'!$F$9)^W$4 -> -24130.33401 | X111: =X99/(1+'Model Inputs'!$F$9)^X$4 -> -23199.1795 | Y111: =Y99/(1+'Model Inputs'!$F$9)^Y$4 -> -591282.4491 | Z111: =Z99/(1+'Model Inputs'!$F$9)^Z$4 -> -21443.27963 | AA111: =AA99/(1+'Model Inputs'!$F$9)^AA$4 -> -20615.81464 | AB111: =AB99/(1+'Model Inputs'!$F$9)^AB$4 -> -19820.28033 | AC111: =AC99/(1+'Model Inputs'!$F$9)^AC$4 -> -19055.44453 | AD111: =AD99/(1+'Model Inputs'!$F$9)^AD$4 -> -18320.12263 | AE111: =AE99/(1+'Model Inputs'!$F$9)^AE$4 -> -17613.17573 | AF111: =AF99/(1+'Model Inputs'!$F$9)^AF$4 -> -16933.50889 | AG111: =AG99/(1+'Model Inputs'!$F$9)^AG$4 -> -16280.0694 | AH111: =AH99/(1+'Model Inputs'!$F$9)^AH$4 -> -15651.84519 | AI111: =AI99/(1+'Model Inputs'!$F$9)^AI$4 -> -322147.1131 | AJ111: =SUM(E111:AI111) -> -6070648.082
B112: =B62 -> Discounted revenues | C112: NZ$: | E112: =E104/(1+'Model Inputs'!$F$9)^E$4 -> 0 | F112: =F104/(1+'Model Inputs'!$F$9)^F$4 -> 338082.3058 | G112: =G104/(1+'Model Inputs'!$F$9)^G$4 -> 325036.2011 | H112: =H104/(1+'Model Inputs'!$F$9)^H$4 -> 312493.5267 | I112: =I104/(1+'Model Inputs'!$F$9)^I$4 -> 300434.8558 | J112: =J104/(1+'Model Inputs'!$F$9)^J$4 -> 288841.5116 | K112: =K104/(1+'Model Inputs'!$F$9)^K$4 -> 277695.5376 | L112: =L104/(1+'Model Inputs'!$F$9)^L$4 -> 266979.6705 | M112: =M104/(1+'Model Inputs'!$F$9)^M$4 -> 256677.3132 | N112: =N104/(1+'Model Inputs'!$F$9)^N$4 -> 246772.5089 | O112: =O104/(1+'Model Inputs'!$F$9)^O$4 -> 237249.9166 | P112: =P104/(1+'Model Inputs'!$F$9)^P$4 -> 228094.7872 | Q112: =Q104/(1+'Model Inputs'!$F$9)^Q$4 -> 219292.941 | R112: =R104/(1+'Model Inputs'!$F$9)^R$4 -> 210830.7452 | S112: =S104/(1+'Model Inputs'!$F$9)^S$4 -> 202695.0933 | T112: =T104/(1+'Model Inputs'!$F$9)^T$4 -> 194873.3844 | U112: =U104/(1+'Model Inputs'!$F$9)^U$4 -> 187353.5038 | V112: =V104/(1+'Model Inputs'!$F$9)^V$4 -> 180123.8045 | W112: =W104/(1+'Model Inputs'!$F$9)^W$4 -> 173173.0887 | X112: =X104/(1+'Model Inputs'!$F$9)^X$4 -> 166490.591 | Y112: =Y104/(1+'Model Inputs'!$F$9)^Y$4 -> 160065.9612 | Z112: =Z104/(1+'Model Inputs'!$F$9)^Z$4 -> 153889.2485 | AA112: =AA104/(1+'Model Inputs'!$F$9)^AA$4 -> 147950.8861 | AB112: =AB104/(1+'Model Inputs'!$F$9)^AB$4 -> 142241.6765 | AC112: =AC104/(1+'Model Inputs'!$F$9)^AC$4 -> 136752.777 | AD112: =AD104/(1+'Model Inputs'!$F$9)^AD$4 -> 131475.6862 | AE112: =AE104/(1+'Model Inputs'!$F$9)^AE$4 -> 126402.2306 | AF112: =AF104/(1+'Model Inputs'!$F$9)^AF$4 -> 121524.5523 | AG112: =AG104/(1+'Model Inputs'!$F$9)^AG$4 -> 116835.0965 | AH112: =AH104/(1+'Model Inputs'!$F$9)^AH$4 -> 112326.6 | AI112: =AI104/(1+'Model Inputs'!$F$9)^AI$4 -> 107992.0798 | AJ112: =SUM(E112:AI112) -> 6070648.082
B114: GRAPHICAL OUTPUT
B116: Net Cash Flow | C116: NZ$: | E116: =CHOOSE(MATCH('Model Inputs'!$K$5,'Model Inputs'!$F$14:$I$14,0),E31,E56,E81,E106) -> -253000 | F116: =CHOOSE(MATCH('Model Inputs'!$K$5,'Model Inputs'!$F$14:$I$14,0),F31,F56,F81,F106) -> 14933.88483 | G116: =CHOOSE(MATCH('Model Inputs'!$K$5,'Model Inputs'!$F$14:$I$14,0),G31,G56,G81,G106) -> 15217.62864 | H116: =CHOOSE(MATCH('Model Inputs'!$K$5,'Model Inputs'!$F$14:$I$14,0),H31,H56,H81,H106) -> 15506.76358 | I116: =CHOOSE(MATCH('Model Inputs'!$K$5,'Model Inputs'!$F$14:$I$14,0),I31,I56,I81,I106) -> 15801.39209 | J116: =CHOOSE(MATCH('Model Inputs'!$K$5,'Model Inputs'!$F$14:$I$14,0),J31,J56,J81,J106) -> 16101.61854 | K116: =CHOOSE(MATCH('Model Inputs'!$K$5,'Model Inputs'!$F$14:$I$14,0),K31,K56,K81,K106) -> 16407.54929 | L116: =CHOOSE(MATCH('Model Inputs'!$K$5,'Model Inputs'!$F$14:$I$14,0),L31,L56,L81,L106) -> 16719.29273 | M116: =CHOOSE(MATCH('Model Inputs'!$K$5,'Model Inputs'!$F$14:$I$14,0),M31,M56,M81,M106) -> 17036.95929 | N116: =CHOOSE(MATCH('Model Inputs'!$K$5,'Model Inputs'!$F$14:$I$14,0),N31,N56,N81,N106) -> 17360.66152 | O116: =CHOOSE(MATCH('Model Inputs'!$K$5,'Model Inputs'!$F$14:$I$14,0),O31,O56,O81,O106) -> 17690.51409 | P116: =CHOOSE(MATCH('Model Inputs'!$K$5,'Model Inputs'!$F$14:$I$14,0),P31,P56,P81,P106) -> 18026.63385 | Q116: =CHOOSE(MATCH('Model Inputs'!$K$5,'Model Inputs'!$F$14:$I$14,0),Q31,Q56,Q81,Q106) -> 18369.1399 | R116: =CHOOSE(MATCH('Model Inputs'!$K$5,'Model Inputs'!$F$14:$I$14,0),R31,R56,R81,R106) -> 18718.15356 | S116: =CHOOSE(MATCH('Model Inputs'!$K$5,'Model Inputs'!$F$14:$I$14,0),S31,S56,S81,S106) -> 19073.79847 | T116: =CHOOSE(MATCH('Model Inputs'!$K$5,'Model Inputs'!$F$14:$I$14,0),T31,T56,T81,T106) -> 19436.20064 | U116: =CHOOSE(MATCH('Model Inputs'!$K$5,'Model Inputs'!$F$14:$I$14,0),U31,U56,U81,U106) -> 19805.48846 | V116: =CHOOSE(MATCH('Model Inputs'!$K$5,'Model Inputs'!$F$14:$I$14,0),V31,V56,V81,V106) -> 20181.79274 | W116: =CHOOSE(MATCH('Model Inputs'!$K$5,'Model Inputs'!$F$14:$I$14,0),W31,W56,W81,W106) -> 20565.2468 | X116: =CHOOSE(MATCH('Model Inputs'!$K$5,'Model Inputs'!$F$14:$I$14,0),X31,X56,X81,X106) -> 20955.98649 | Y116: =CHOOSE(MATCH('Model Inputs'!$K$5,'Model Inputs'!$F$14:$I$14,0),Y31,Y56,Y81,Y106) -> 21354.15023 | Z116: =CHOOSE(MATCH('Model Inputs'!$K$5,'Model Inputs'!$F$14:$I$14,0),Z31,Z56,Z81,Z106) -> 21759.87909 | AA116: =CHOOSE(MATCH('Model Inputs'!$K$5,'Model Inputs'!$F$14:$I$14,0),AA31,AA56,AA81,AA106) -> 22173.31679 | AB116: =CHOOSE(MATCH('Model Inputs'!$K$5,'Model Inputs'!$F$14:$I$14,0),AB31,AB56,AB81,AB106) -> 22594.60981 | AC116: =CHOOSE(MATCH('Model Inputs'!$K$5,'Model Inputs'!$F$14:$I$14,0),AC31,AC56,AC81,AC106) -> 23023.90739 | AD116: =CHOOSE(MATCH('Model Inputs'!$K$5,'Model Inputs'!$F$14:$I$14,0),AD31,AD56,AD81,AD106) -> 23461.36164 | AE116: =CHOOSE(MATCH('Model Inputs'!$K$5,'Model Inputs'!$F$14:$I$14,0),AE31,AE56,AE81,AE106) -> 23907.12751 | AF116: =CHOOSE(MATCH('Model Inputs'!$K$5,'Model Inputs'!$F$14:$I$14,0),AF31,AF56,AF81,AF106) -> 24361.36293 | AG116: =CHOOSE(MATCH('Model Inputs'!$K$5,'Model Inputs'!$F$14:$I$14,0),AG31,AG56,AG81,AG106) -> 24824.22882 | AH116: =CHOOSE(MATCH('Model Inputs'!$K$5,'Model Inputs'!$F$14:$I$14,0),AH31,AH56,AH81,AH106) -> 25295.88917 | AI116: =CHOOSE(MATCH('Model Inputs'!$K$5,'Model Inputs'!$F$14:$I$14,0),AI31,AI56,AI81,AI106) -> 25776.51107
B117: Discounted Cash Flow | C117: NZ$: | E117: =CHOOSE(MATCH('Model Inputs'!$K$5,'Model Inputs'!$F$14:$I$14,0),E33,E58,E83,E108) -> -253000 | F117: =CHOOSE(MATCH('Model Inputs'!$K$5,'Model Inputs'!$F$14:$I$14,0),F33,F58,F83,F108) -> 14089.89983 | G117: =CHOOSE(MATCH('Model Inputs'!$K$5,'Model Inputs'!$F$14:$I$14,0),G33,G58,G83,G108) -> 13546.19108 | H117: =CHOOSE(MATCH('Model Inputs'!$K$5,'Model Inputs'!$F$14:$I$14,0),H33,H58,H83,H108) -> 13023.46326 | I117: =CHOOSE(MATCH('Model Inputs'!$K$5,'Model Inputs'!$F$14:$I$14,0),I33,I58,I83,I108) -> 12520.90675 | J117: =CHOOSE(MATCH('Model Inputs'!$K$5,'Model Inputs'!$F$14:$I$14,0),J33,J58,J83,J108) -> 12037.74316 | K117: =CHOOSE(MATCH('Model Inputs'!$K$5,'Model Inputs'!$F$14:$I$14,0),K33,K58,K83,K108) -> 11573.22415 | L117: =CHOOSE(MATCH('Model Inputs'!$K$5,'Model Inputs'!$F$14:$I$14,0),L33,L58,L83,L108) -> 11126.63026 | M117: =CHOOSE(MATCH('Model Inputs'!$K$5,'Model Inputs'!$F$14:$I$14,0),M33,M58,M83,M108) -> 10697.26978 | N117: =CHOOSE(MATCH('Model Inputs'!$K$5,'Model Inputs'!$F$14:$I$14,0),N33,N58,N83,N108) -> 10284.47769 | O117: =CHOOSE(MATCH('Model Inputs'!$K$5,'Model Inputs'!$F$14:$I$14,0),O33,O58,O83,O108) -> 9887.614647 | P117: =CHOOSE(MATCH('Model Inputs'!$K$5,'Model Inputs'!$F$14:$I$14,0),P33,P58,P83,P108) -> 9506.065973 | Q117: =CHOOSE(MATCH('Model Inputs'!$K$5,'Model Inputs'!$F$14:$I$14,0),Q33,Q58,Q83,Q108) -> 9139.240708 | R117: =CHOOSE(MATCH('Model Inputs'!$K$5,'Model Inputs'!$F$14:$I$14,0),R33,R58,R83,R108) -> 8786.570697 | S117: =CHOOSE(MATCH('Model Inputs'!$K$5,'Model Inputs'!$F$14:$I$14,0),S33,S58,S83,S108) -> 8447.509709 | T117: =CHOOSE(MATCH('Model Inputs'!$K$5,'Model Inputs'!$F$14:$I$14,0),T33,T58,T83,T108) -> 8121.532591 | U117: =CHOOSE(MATCH('Model Inputs'!$K$5,'Model Inputs'!$F$14:$I$14,0),U33,U58,U83,U108) -> 7808.134456 | V117: =CHOOSE(MATCH('Model Inputs'!$K$5,'Model Inputs'!$F$14:$I$14,0),V33,V58,V83,V108) -> 7506.8299 | W117: =CHOOSE(MATCH('Model Inputs'!$K$5,'Model Inputs'!$F$14:$I$14,0),W33,W58,W83,W108) -> 7217.152248 | X117: =CHOOSE(MATCH('Model Inputs'!$K$5,'Model Inputs'!$F$14:$I$14,0),X33,X58,X83,X108) -> 6938.652836 | Y117: =CHOOSE(MATCH('Model Inputs'!$K$5,'Model Inputs'!$F$14:$I$14,0),Y33,Y58,Y83,Y108) -> 6670.900311 | Z117: =CHOOSE(MATCH('Model Inputs'!$K$5,'Model Inputs'!$F$14:$I$14,0),Z33,Z58,Z83,Z108) -> 6413.479967 | AA117: =CHOOSE(MATCH('Model Inputs'!$K$5,'Model Inputs'!$F$14:$I$14,0),AA33,AA58,AA83,AA108) -> 6165.9931 | AB117: =CHOOSE(MATCH('Model Inputs'!$K$5,'Model Inputs'!$F$14:$I$14,0),AB33,AB58,AB83,AB108) -> 5928.056391 | AC117: =CHOOSE(MATCH('Model Inputs'!$K$5,'Model Inputs'!$F$14:$I$14,0),AC33,AC58,AC83,AC108) -> 5699.301314 | AD117: =CHOOSE(MATCH('Model Inputs'!$K$5,'Model Inputs'!$F$14:$I$14,0),AD33,AD58,AD83,AD108) -> 5479.373562 | AE117: =CHOOSE(MATCH('Model Inputs'!$K$5,'Model Inputs'!$F$14:$I$14,0),AE33,AE58,AE83,AE108) -> 5267.932503 | AF117: =CHOOSE(MATCH('Model Inputs'!$K$5,'Model Inputs'!$F$14:$I$14,0),AF33,AF58,AF83,AF108) -> 5064.650647 | AG117: =CHOOSE(MATCH('Model Inputs'!$K$5,'Model Inputs'!$F$14:$I$14,0),AG33,AG58,AG83,AG108) -> 4869.213142 | AH117: =CHOOSE(MATCH('Model Inputs'!$K$5,'Model Inputs'!$F$14:$I$14,0),AH33,AH58,AH83,AH108) -> 4681.317286 | AI117: =CHOOSE(MATCH('Model Inputs'!$K$5,'Model Inputs'!$F$14:$I$14,0),AI33,AI58,AI83,AI108) -> 4500.672058
B118: Cumulative Cash Flow | C118: NZ$: | E118: =E116 -> -253000 | F118: =E118+F116 -> -238066.1152 | G118: =F118+G116 -> -222848.4865 | H118: -207341.723 | I118: -191540.3309 | J118: -175438.7123 | K118: -159031.163 | L118: -142311.8703 | M118: -125274.911 | N118: -107914.2495 | O118: -90223.7354 | P118: -72197.10154 | Q118: -53827.96164 | R118: -35109.80809 | S118: -16036.00961 | T118: 3400.191032 | U118: 23205.67949 | V118: 43387.47223 | W118: 63952.71903 | X118: 84908.70552 | Y118: 106262.8557 | Z118: 128022.7348 | AA118: 150196.0516 | AB118: 172790.6614 | AC118: 195814.5688 | AD118: 219275.9305 | AE118: 243183.058 | AF118: 267544.4209 | AG118: 292368.6497 | AH118: 317664.5389 | AI118: 343441.05
B119: Cumulative Discounted Cash Flow | C119: NZ$: | E119: =E117 -> -253000 | F119: =E119+F117 -> -238910.1002 | G119: =F119+G117 -> -225363.9091 | H119: -212340.4458 | I119: -199819.5391 | J119: -187781.7959 | K119: -176208.5718 | L119: -165081.9415 | M119: -154384.6717 | N119: -144100.194 | O119: -134212.5794 | P119: -124706.5134 | Q119: -115567.2727 | R119: -106780.702 | S119: -98333.19231 | T119: -90211.65972 | U119: -82403.52527 | V119: -74896.69537 | W119: -67679.54312 | X119: -60740.89028 | Y119: -54069.98997 | Z119: -47656.51 | AA119: -41490.5169 | AB119: -35562.46051 | AC119: -29863.1592 | AD119: -24383.78564 | AE119: -19115.85313 | AF119: -14051.20249 | AG119: -9181.989345 | AH119: -4500.672058 | AI119: 0
B121: Revenue | C121: NZ$: | E121: =CHOOSE(MATCH('Model Inputs'!$K$5,'Model Inputs'!$F$14:$I$14,0),E29,E54,E79,E104) -> 0 | F121: =CHOOSE(MATCH('Model Inputs'!$K$5,'Model Inputs'!$F$14:$I$14,0),F29,F54,F79,F104) -> 35313.88483 | G121: =CHOOSE(MATCH('Model Inputs'!$K$5,'Model Inputs'!$F$14:$I$14,0),G29,G54,G79,G104) -> 35984.84864 | H121: =CHOOSE(MATCH('Model Inputs'!$K$5,'Model Inputs'!$F$14:$I$14,0),H29,H54,H79,H104) -> 36668.56076 | I121: =CHOOSE(MATCH('Model Inputs'!$K$5,'Model Inputs'!$F$14:$I$14,0),I29,I54,I79,I104) -> 37365.26342 | J121: =CHOOSE(MATCH('Model Inputs'!$K$5,'Model Inputs'!$F$14:$I$14,0),J29,J54,J79,J104) -> 38075.20342 | K121: =CHOOSE(MATCH('Model Inputs'!$K$5,'Model Inputs'!$F$14:$I$14,0),K29,K54,K79,K104) -> 38798.63229 | L121: =CHOOSE(MATCH('Model Inputs'!$K$5,'Model Inputs'!$F$14:$I$14,0),L29,L54,L79,L104) -> 39535.8063 | M121: =CHOOSE(MATCH('Model Inputs'!$K$5,'Model Inputs'!$F$14:$I$14,0),M29,M54,M79,M104) -> 40286.98662 | N121: =CHOOSE(MATCH('Model Inputs'!$K$5,'Model Inputs'!$F$14:$I$14,0),N29,N54,N79,N104) -> 41052.43937 | O121: =CHOOSE(MATCH('Model Inputs'!$K$5,'Model Inputs'!$F$14:$I$14,0),O29,O54,O79,O104) -> 41832.43571 | P121: =CHOOSE(MATCH('Model Inputs'!$K$5,'Model Inputs'!$F$14:$I$14,0),P29,P54,P79,P104) -> 42627.25199 | Q121: =CHOOSE(MATCH('Model Inputs'!$K$5,'Model Inputs'!$F$14:$I$14,0),Q29,Q54,Q79,Q104) -> 43437.16978 | R121: =CHOOSE(MATCH('Model Inputs'!$K$5,'Model Inputs'!$F$14:$I$14,0),R29,R54,R79,R104) -> 44262.47601 | S121: =CHOOSE(MATCH('Model Inputs'!$K$5,'Model Inputs'!$F$14:$I$14,0),S29,S54,S79,S104) -> 45103.46305 | T121: =CHOOSE(MATCH('Model Inputs'!$K$5,'Model Inputs'!$F$14:$I$14,0),T29,T54,T79,T104) -> 45960.42885 | U121: =CHOOSE(MATCH('Model Inputs'!$K$5,'Model Inputs'!$F$14:$I$14,0),U29,U54,U79,U104) -> 46833.677 | V121: =CHOOSE(MATCH('Model Inputs'!$K$5,'Model Inputs'!$F$14:$I$14,0),V29,V54,V79,V104) -> 47723.51686 | W121: =CHOOSE(MATCH('Model Inputs'!$K$5,'Model Inputs'!$F$14:$I$14,0),W29,W54,W79,W104) -> 48630.26368 | X121: =CHOOSE(MATCH('Model Inputs'!$K$5,'Model Inputs'!$F$14:$I$14,0),X29,X54,X79,X104) -> 49554.23869 | Y121: =CHOOSE(MATCH('Model Inputs'!$K$5,'Model Inputs'!$F$14:$I$14,0),Y29,Y54,Y79,Y104) -> 50495.76923 | Z121: =CHOOSE(MATCH('Model Inputs'!$K$5,'Model Inputs'!$F$14:$I$14,0),Z29,Z54,Z79,Z104) -> 51455.18884 | AA121: =CHOOSE(MATCH('Model Inputs'!$K$5,'Model Inputs'!$F$14:$I$14,0),AA29,AA54,AA79,AA104) -> 52432.83743 | AB121: =CHOOSE(MATCH('Model Inputs'!$K$5,'Model Inputs'!$F$14:$I$14,0),AB29,AB54,AB79,AB104) -> 53429.06134 | AC121: =CHOOSE(MATCH('Model Inputs'!$K$5,'Model Inputs'!$F$14:$I$14,0),AC29,AC54,AC79,AC104) -> 54444.21351 | AD121: =CHOOSE(MATCH('Model Inputs'!$K$5,'Model Inputs'!$F$14:$I$14,0),AD29,AD54,AD79,AD104) -> 55478.65356 | AE121: =CHOOSE(MATCH('Model Inputs'!$K$5,'Model Inputs'!$F$14:$I$14,0),AE29,AE54,AE79,AE104) -> 56532.74798 | AF121: =CHOOSE(MATCH('Model Inputs'!$K$5,'Model Inputs'!$F$14:$I$14,0),AF29,AF54,AF79,AF104) -> 57606.87019 | AG121: =CHOOSE(MATCH('Model Inputs'!$K$5,'Model Inputs'!$F$14:$I$14,0),AG29,AG54,AG79,AG104) -> 58701.40073 | AH121: =CHOOSE(MATCH('Model Inputs'!$K$5,'Model Inputs'!$F$14:$I$14,0),AH29,AH54,AH79,AH104) -> 59816.72734 | AI121: =CHOOSE(MATCH('Model Inputs'!$K$5,'Model Inputs'!$F$14:$I$14,0),AI29,AI54,AI79,AI104) -> 60953.24516
B122: Opex | C122: NZ$: | E122: =CHOOSE(MATCH('Model Inputs'!$K$5,'Model Inputs'!$F$14:$I$14,0),E17,E42,E67,E92) -> 0 | F122: =CHOOSE(MATCH('Model Inputs'!$K$5,'Model Inputs'!$F$14:$I$14,0),F17,F42,F67,F92) -> -20380 | G122: =CHOOSE(MATCH('Model Inputs'!$K$5,'Model Inputs'!$F$14:$I$14,0),G17,G42,G67,G92) -> -20767.22 | H122: =CHOOSE(MATCH('Model Inputs'!$K$5,'Model Inputs'!$F$14:$I$14,0),H17,H42,H67,H92) -> -21161.79718 | I122: =CHOOSE(MATCH('Model Inputs'!$K$5,'Model Inputs'!$F$14:$I$14,0),I17,I42,I67,I92) -> -21563.87133 | J122: =CHOOSE(MATCH('Model Inputs'!$K$5,'Model Inputs'!$F$14:$I$14,0),J17,J42,J67,J92) -> -21973.58488 | K122: =CHOOSE(MATCH('Model Inputs'!$K$5,'Model Inputs'!$F$14:$I$14,0),K17,K42,K67,K92) -> -22391.08299 | L122: =CHOOSE(MATCH('Model Inputs'!$K$5,'Model Inputs'!$F$14:$I$14,0),L17,L42,L67,L92) -> -22816.51357 | M122: =CHOOSE(MATCH('Model Inputs'!$K$5,'Model Inputs'!$F$14:$I$14,0),M17,M42,M67,M92) -> -23250.02733 | N122: =CHOOSE(MATCH('Model Inputs'!$K$5,'Model Inputs'!$F$14:$I$14,0),N17,N42,N67,N92) -> -23691.77785 | O122: =CHOOSE(MATCH('Model Inputs'!$K$5,'Model Inputs'!$F$14:$I$14,0),O17,O42,O67,O92) -> -24141.92163 | P122: =CHOOSE(MATCH('Model Inputs'!$K$5,'Model Inputs'!$F$14:$I$14,0),P17,P42,P67,P92) -> -24600.61814 | Q122: =CHOOSE(MATCH('Model Inputs'!$K$5,'Model Inputs'!$F$14:$I$14,0),Q17,Q42,Q67,Q92) -> -25068.02988 | R122: =CHOOSE(MATCH('Model Inputs'!$K$5,'Model Inputs'!$F$14:$I$14,0),R17,R42,R67,R92) -> -25544.32245 | S122: =CHOOSE(MATCH('Model Inputs'!$K$5,'Model Inputs'!$F$14:$I$14,0),S17,S42,S67,S92) -> -26029.66458 | T122: =CHOOSE(MATCH('Model Inputs'!$K$5,'Model Inputs'!$F$14:$I$14,0),T17,T42,T67,T92) -> -26524.2282 | U122: =CHOOSE(MATCH('Model Inputs'!$K$5,'Model Inputs'!$F$14:$I$14,0),U17,U42,U67,U92) -> -27028.18854 | V122: =CHOOSE(MATCH('Model Inputs'!$K$5,'Model Inputs'!$F$14:$I$14,0),V17,V42,V67,V92) -> -27541.72412 | W122: =CHOOSE(MATCH('Model Inputs'!$K$5,'Model Inputs'!$F$14:$I$14,0),W17,W42,W67,W92) -> -28065.01688 | X122: =CHOOSE(MATCH('Model Inputs'!$K$5,'Model Inputs'!$F$14:$I$14,0),X17,X42,X67,X92) -> -28598.2522 | Y122: =CHOOSE(MATCH('Model Inputs'!$K$5,'Model Inputs'!$F$14:$I$14,0),Y17,Y42,Y67,Y92) -> -29141.61899 | Z122: =CHOOSE(MATCH('Model Inputs'!$K$5,'Model Inputs'!$F$14:$I$14,0),Z17,Z42,Z67,Z92) -> -29695.30975 | AA122: =CHOOSE(MATCH('Model Inputs'!$K$5,'Model Inputs'!$F$14:$I$14,0),AA17,AA42,AA67,AA92) -> -30259.52064 | AB122: =CHOOSE(MATCH('Model Inputs'!$K$5,'Model Inputs'!$F$14:$I$14,0),AB17,AB42,AB67,AB92) -> -30834.45153 | AC122: =CHOOSE(MATCH('Model Inputs'!$K$5,'Model Inputs'!$F$14:$I$14,0),AC17,AC42,AC67,AC92) -> -31420.30611 | AD122: =CHOOSE(MATCH('Model Inputs'!$K$5,'Model Inputs'!$F$14:$I$14,0),AD17,AD42,AD67,AD92) -> -32017.29193 | AE122: =CHOOSE(MATCH('Model Inputs'!$K$5,'Model Inputs'!$F$14:$I$14,0),AE17,AE42,AE67,AE92) -> -32625.62047 | AF122: =CHOOSE(MATCH('Model Inputs'!$K$5,'Model Inputs'!$F$14:$I$14,0),AF17,AF42,AF67,AF92) -> -33245.50726 | AG122: =CHOOSE(MATCH('Model Inputs'!$K$5,'Model Inputs'!$F$14:$I$14,0),AG17,AG42,AG67,AG92) -> -33877.1719 | AH122: =CHOOSE(MATCH('Model Inputs'!$K$5,'Model Inputs'!$F$14:$I$14,0),AH17,AH42,AH67,AH92) -> -34520.83817 | AI122: =CHOOSE(MATCH('Model Inputs'!$K$5,'Model Inputs'!$F$14:$I$14,0),AI17,AI42,AI67,AI92) -> -35176.73409
B123: Capex | C123: NZ$: | E123: =CHOOSE(MATCH('Model Inputs'!$K$5,'Model Inputs'!$F$14:$I$14,0),E16,E41,E66,E91) -> -253000 | F123: =CHOOSE(MATCH('Model Inputs'!$K$5,'Model Inputs'!$F$14:$I$14,0),F16,F41,F66,F91) -> 0 | G123: =CHOOSE(MATCH('Model Inputs'!$K$5,'Model Inputs'!$F$14:$I$14,0),G16,G41,G66,G91) -> 0 | H123: =CHOOSE(MATCH('Model Inputs'!$K$5,'Model Inputs'!$F$14:$I$14,0),H16,H41,H66,H91) -> 0 | I123: =CHOOSE(MATCH('Model Inputs'!$K$5,'Model Inputs'!$F$14:$I$14,0),I16,I41,I66,I91) -> 0 | J123: =CHOOSE(MATCH('Model Inputs'!$K$5,'Model Inputs'!$F$14:$I$14,0),J16,J41,J66,J91) -> 0 | K123: =CHOOSE(MATCH('Model Inputs'!$K$5,'Model Inputs'!$F$14:$I$14,0),K16,K41,K66,K91) -> 0 | L123: =CHOOSE(MATCH('Model Inputs'!$K$5,'Model Inputs'!$F$14:$I$14,0),L16,L41,L66,L91) -> 0 | M123: =CHOOSE(MATCH('Model Inputs'!$K$5,'Model Inputs'!$F$14:$I$14,0),M16,M41,M66,M91) -> 0 | N123: =CHOOSE(MATCH('Model Inputs'!$K$5,'Model Inputs'!$F$14:$I$14,0),N16,N41,N66,N91) -> 0 | O123: =CHOOSE(MATCH('Model Inputs'!$K$5,'Model Inputs'!$F$14:$I$14,0),O16,O41,O66,O91) -> 0 | P123: =CHOOSE(MATCH('Model Inputs'!$K$5,'Model Inputs'!$F$14:$I$14,0),P16,P41,P66,P91) -> 0 | Q123: =CHOOSE(MATCH('Model Inputs'!$K$5,'Model Inputs'!$F$14:$I$14,0),Q16,Q41,Q66,Q91) -> 0 | R123: =CHOOSE(MATCH('Model Inputs'!$K$5,'Model Inputs'!$F$14:$I$14,0),R16,R41,R66,R91) -> 0 | S123: =CHOOSE(MATCH('Model Inputs'!$K$5,'Model Inputs'!$F$14:$I$14,0),S16,S41,S66,S91) -> 0 | T123: =CHOOSE(MATCH('Model Inputs'!$K$5,'Model Inputs'!$F$14:$I$14,0),T16,T41,T66,T91) -> 0 | U123: =CHOOSE(MATCH('Model Inputs'!$K$5,'Model Inputs'!$F$14:$I$14,0),U16,U41,U66,U91) -> 0 | V123: =CHOOSE(MATCH('Model Inputs'!$K$5,'Model Inputs'!$F$14:$I$14,0),V16,V41,V66,V91) -> 0 | W123: =CHOOSE(MATCH('Model Inputs'!$K$5,'Model Inputs'!$F$14:$I$14,0),W16,W41,W66,W91) -> 0 | X123: =CHOOSE(MATCH('Model Inputs'!$K$5,'Model Inputs'!$F$14:$I$14,0),X16,X41,X66,X91) -> 0 | Y123: =CHOOSE(MATCH('Model Inputs'!$K$5,'Model Inputs'!$F$14:$I$14,0),Y16,Y41,Y66,Y91) -> 0 | Z123: =CHOOSE(MATCH('Model Inputs'!$K$5,'Model Inputs'!$F$14:$I$14,0),Z16,Z41,Z66,Z91) -> 0 | AA123: =CHOOSE(MATCH('Model Inputs'!$K$5,'Model Inputs'!$F$14:$I$14,0),AA16,AA41,AA66,AA91) -> 0 | AB123: =CHOOSE(MATCH('Model Inputs'!$K$5,'Model Inputs'!$F$14:$I$14,0),AB16,AB41,AB66,AB91) -> 0 | AC123: =CHOOSE(MATCH('Model Inputs'!$K$5,'Model Inputs'!$F$14:$I$14,0),AC16,AC41,AC66,AC91) -> 0 | AD123: =CHOOSE(MATCH('Model Inputs'!$K$5,'Model Inputs'!$F$14:$I$14,0),AD16,AD41,AD66,AD91) -> 0 | AE123: =CHOOSE(MATCH('Model Inputs'!$K$5,'Model Inputs'!$F$14:$I$14,0),AE16,AE41,AE66,AE91) -> 0 | AF123: =CHOOSE(MATCH('Model Inputs'!$K$5,'Model Inputs'!$F$14:$I$14,0),AF16,AF41,AF66,AF91) -> 0 | AG123: =CHOOSE(MATCH('Model Inputs'!$K$5,'Model Inputs'!$F$14:$I$14,0),AG16,AG41,AG66,AG91) -> 0 | AH123: =CHOOSE(MATCH('Model Inputs'!$K$5,'Model Inputs'!$F$14:$I$14,0),AH16,AH41,AH66,AH91) -> 0 | AI123: =CHOOSE(MATCH('Model Inputs'!$K$5,'Model Inputs'!$F$14:$I$14,0),AI16,AI41,AI66,AI91) -> 0
B124: Lifecycle Capex | C124: NZ$: | E124: =CHOOSE(MATCH('Model Inputs'!$K$5,'Model Inputs'!$F$14:$I$14,0),SUM(E19:E22),SUM(E44:E47),SUM(E69:E72),SUM(E94:E97)) -> 0 | F124: =CHOOSE(MATCH('Model Inputs'!$K$5,'Model Inputs'!$F$14:$I$14,0),SUM(F19:F22),SUM(F44:F47),SUM(F69:F72),SUM(F94:F97)) -> 0 | G124: =CHOOSE(MATCH('Model Inputs'!$K$5,'Model Inputs'!$F$14:$I$14,0),SUM(G19:G22),SUM(G44:G47),SUM(G69:G72),SUM(G94:G97)) -> 0 | H124: =CHOOSE(MATCH('Model Inputs'!$K$5,'Model Inputs'!$F$14:$I$14,0),SUM(H19:H22),SUM(H44:H47),SUM(H69:H72),SUM(H94:H97)) -> 0 | I124: =CHOOSE(MATCH('Model Inputs'!$K$5,'Model Inputs'!$F$14:$I$14,0),SUM(I19:I22),SUM(I44:I47),SUM(I69:I72),SUM(I94:I97)) -> 0 | J124: =CHOOSE(MATCH('Model Inputs'!$K$5,'Model Inputs'!$F$14:$I$14,0),SUM(J19:J22),SUM(J44:J47),SUM(J69:J72),SUM(J94:J97)) -> 0 | K124: =CHOOSE(MATCH('Model Inputs'!$K$5,'Model Inputs'!$F$14:$I$14,0),SUM(K19:K22),SUM(K44:K47),SUM(K69:K72),SUM(K94:K97)) -> 0 | L124: =CHOOSE(MATCH('Model Inputs'!$K$5,'Model Inputs'!$F$14:$I$14,0),SUM(L19:L22),SUM(L44:L47),SUM(L69:L72),SUM(L94:L97)) -> 0 | M124: =CHOOSE(MATCH('Model Inputs'!$K$5,'Model Inputs'!$F$14:$I$14,0),SUM(M19:M22),SUM(M44:M47),SUM(M69:M72),SUM(M94:M97)) -> 0 | N124: =CHOOSE(MATCH('Model Inputs'!$K$5,'Model Inputs'!$F$14:$I$14,0),SUM(N19:N22),SUM(N44:N47),SUM(N69:N72),SUM(N94:N97)) -> 0 | O124: =CHOOSE(MATCH('Model Inputs'!$K$5,'Model Inputs'!$F$14:$I$14,0),SUM(O19:O22),SUM(O44:O47),SUM(O69:O72),SUM(O94:O97)) -> 0 | P124: =CHOOSE(MATCH('Model Inputs'!$K$5,'Model Inputs'!$F$14:$I$14,0),SUM(P19:P22),SUM(P44:P47),SUM(P69:P72),SUM(P94:P97)) -> 0 | Q124: =CHOOSE(MATCH('Model Inputs'!$K$5,'Model Inputs'!$F$14:$I$14,0),SUM(Q19:Q22),SUM(Q44:Q47),SUM(Q69:Q72),SUM(Q94:Q97)) -> 0 | R124: =CHOOSE(MATCH('Model Inputs'!$K$5,'Model Inputs'!$F$14:$I$14,0),SUM(R19:R22),SUM(R44:R47),SUM(R69:R72),SUM(R94:R97)) -> 0 | S124: =CHOOSE(MATCH('Model Inputs'!$K$5,'Model Inputs'!$F$14:$I$14,0),SUM(S19:S22),SUM(S44:S47),SUM(S69:S72),SUM(S94:S97)) -> 0 | T124: =CHOOSE(MATCH('Model Inputs'!$K$5,'Model Inputs'!$F$14:$I$14,0),SUM(T19:T22),SUM(T44:T47),SUM(T69:T72),SUM(T94:T97)) -> 0 | U124: =CHOOSE(MATCH('Model Inputs'!$K$5,'Model Inputs'!$F$14:$I$14,0),SUM(U19:U22),SUM(U44:U47),SUM(U69:U72),SUM(U94:U97)) -> 0 | V124: =CHOOSE(MATCH('Model Inputs'!$K$5,'Model Inputs'!$F$14:$I$14,0),SUM(V19:V22),SUM(V44:V47),SUM(V69:V72),SUM(V94:V97)) -> 0 | W124: =CHOOSE(MATCH('Model Inputs'!$K$5,'Model Inputs'!$F$14:$I$14,0),SUM(W19:W22),SUM(W44:W47),SUM(W69:W72),SUM(W94:W97)) -> 0 | X124: =CHOOSE(MATCH('Model Inputs'!$K$5,'Model Inputs'!$F$14:$I$14,0),SUM(X19:X22),SUM(X44:X47),SUM(X69:X72),SUM(X94:X97)) -> 0 | Y124: =CHOOSE(MATCH('Model Inputs'!$K$5,'Model Inputs'!$F$14:$I$14,0),SUM(Y19:Y22),SUM(Y44:Y47),SUM(Y69:Y72),SUM(Y94:Y97)) -> 0 | Z124: =CHOOSE(MATCH('Model Inputs'!$K$5,'Model Inputs'!$F$14:$I$14,0),SUM(Z19:Z22),SUM(Z44:Z47),SUM(Z69:Z72),SUM(Z94:Z97)) -> 0 | AA124: =CHOOSE(MATCH('Model Inputs'!$K$5,'Model Inputs'!$F$14:$I$14,0),SUM(AA19:AA22),SUM(AA44:AA47),SUM(AA69:AA72),SUM(AA94:AA97)) -> 0 | AB124: =CHOOSE(MATCH('Model Inputs'!$K$5,'Model Inputs'!$F$14:$I$14,0),SUM(AB19:AB22),SUM(AB44:AB47),SUM(AB69:AB72),SUM(AB94:AB97)) -> 0 | AC124: =CHOOSE(MATCH('Model Inputs'!$K$5,'Model Inputs'!$F$14:$I$14,0),SUM(AC19:AC22),SUM(AC44:AC47),SUM(AC69:AC72),SUM(AC94:AC97)) -> 0 | AD124: =CHOOSE(MATCH('Model Inputs'!$K$5,'Model Inputs'!$F$14:$I$14,0),SUM(AD19:AD22),SUM(AD44:AD47),SUM(AD69:AD72),SUM(AD94:AD97)) -> 0 | AE124: =CHOOSE(MATCH('Model Inputs'!$K$5,'Model Inputs'!$F$14:$I$14,0),SUM(AE19:AE22),SUM(AE44:AE47),SUM(AE69:AE72),SUM(AE94:AE97)) -> 0 | AF124: =CHOOSE(MATCH('Model Inputs'!$K$5,'Model Inputs'!$F$14:$I$14,0),SUM(AF19:AF22),SUM(AF44:AF47),SUM(AF69:AF72),SUM(AF94:AF97)) -> 0 | AG124: =CHOOSE(MATCH('Model Inputs'!$K$5,'Model Inputs'!$F$14:$I$14,0),SUM(AG19:AG22),SUM(AG44:AG47),SUM(AG69:AG72),SUM(AG94:AG97)) -> 0 | AH124: =CHOOSE(MATCH('Model Inputs'!$K$5,'Model Inputs'!$F$14:$I$14,0),SUM(AH19:AH22),SUM(AH44:AH47),SUM(AH69:AH72),SUM(AH94:AH97)) -> 0 | AI124: =CHOOSE(MATCH('Model Inputs'!$K$5,'Model Inputs'!$F$14:$I$14,0),SUM(AI19:AI22),SUM(AI44:AI47),SUM(AI69:AI72),SUM(AI94:AI97)) -> 0
C125: NZ$: | E125: =SUM(E121:E124) -> -253000 | F125: =SUM(F121:F124) -> 14933.88483 | G125: 15217.62864 | H125: 15506.76358 | I125: 15801.39209 | J125: 16101.61854 | K125: 16407.54929 | L125: 16719.29273 | M125: 17036.95929 | N125: 17360.66152 | O125: 17690.51409 | P125: 18026.63385 | Q125: 18369.1399 | R125: 18718.15356 | S125: 19073.79847 | T125: 19436.20064 | U125: 19805.48846 | V125: 20181.79274 | W125: 20565.2468 | X125: 20955.98649 | Y125: 21354.15023 | Z125: 21759.87909 | AA125: 22173.31679 | AB125: 22594.60981 | AC125: 23023.90739 | AD125: 23461.36164 | AE125: 23907.12751 | AF125: 24361.36293 | AG125: 24824.22882 | AH125: 25295.88917 | AI125: 25776.51107
B126: Check | E126: =E116-E125 -> 0 | F126: =F116-F125 -> 0 | G126: 0 | H126: 0 | I126: 0 | J126: 0 | K126: 0 | L126: 0 | M126: 0 | N126: 0 | O126: 0 | P126: 0 | Q126: 0 | R126: 0 | S126: 0 | T126: 0 | U126: 0 | V126: 0 | W126: 0 | X126: 0 | Y126: 0 | Z126: 0 | AA126: 0 | AB126: 0 | AC126: 0 | AD126: 0 | AE126: 0 | AF126: 0 | AG126: 0 | AH126: 0 | AI126: 0
